Workbook

Sheet 1. Info and Instructions
AB1: Alectra Utilities Corporation-Brampton Rate Zone
AB2: Alectra Utilities Corporation-Enersource Rate Zone
AB3: Alectra Utilities Corporation-Horizon Utilities Rate Zone
AB4: Alectra Utilities Corporation-PowerStream Rate Zone
AB5: Alectra Utilities Corporation-Guelph Rate Zone
AB6: Algoma Power Inc.
AB7: Atikokan Hydro Inc.
AB8: Bluewater Power Distribution Corporation
AB9: Brantford Power Inc.
AB10: Burlington Hydro Inc.
AB11: Canadian Niagara Power Inc.
F12: Version | G12: 1 | AB12: Centre Wellington Hydro Ltd.
AB13: Chapleau Public Utilities Corporation
C14: Utility Name | D14: InnPower Corporation | AB14: Cooperative Hydro Embrun Inc.
AB15: E.L.K. Energy Inc.
C16: Assigned EB Number | D16: EB-2023-0033 | AB16: Elexicon Energy Inc.-Whitby Rate Zone
AB17: Elexicon Energy Inc.-Veridian Rate Zone
C18: Name and Title | D18: Laura Hampton, Manager of Regulatory Affairs | AB18: Energy+ Inc.
AB19: Entegrus Powerlines Inc.-For Entegrus-Main Rate Zone
C20: Phone Number | D20: (249) 733-4190 | AB20: Entegrus Powerlines Inc.-For Former St. Thomas Energy Rate Zone
AB21: ENWIN Utilities Ltd.
C22: Email Address | D22: laurah@innpower.ca | AB22: EPCOR Electricity Distribution Ontario Inc.
AB23: ERTH Power Corporation - ERTH Power Main Rate Zone
C24: Date | D24: 2023-05-12 | AB24: ERTH POWER CORPORATION – GODERICH RATE ZONE
AB25: Essex Powerlines Corporation
C26: Last COS Re-based Year | D26: 2017 | AB26: Festival Hydro Inc.
AB27: Fort Frances Power Corporation
AB28: Greater Sudbury Hydro Inc.
A29: Note: Drop-down lists are shaded blue; Input cells are shaded green. | AB29: Grimsby Power Incorporated
AB30: Halton Hills Hydro Inc.
AB31: Hearst Power Distribution Co. Ltd.
AB32: Hydro 2000 Inc.
AB33: Hydro Hawkesbury Inc.
AB34: Hydro One Networks Inc.
AB35: Hydro One Networks Inc.-Former Haldimand County Hydro Inc. Service Area
AB36: Hydro One Networks Inc.-Former Norfolk Power Distribution Inc. Service Area
AB37: Hydro One Networks Inc.-Former Woodstock Hydro Services Inc. Service Area
AB38: Hydro One Remote Communites Inc.
AB39: Hydro Ottawa Limited
AB40: InnPower Corporation
AB41: Kingston Hydro Corporation
AB42: Kitchener-Wilmot Hydro Inc.
AB43: Lakefront Utilities Inc.
AB44: Lakeland Power Distribution Ltd.
AB45: Lakeland Power Distribution Ltd.-Parry Sound Service Area
AB46: London Hydro Inc.
AB47: Milton Hydro Distribution Inc.
AB48: Newmarket-Tay Power Distribution Ltd.-For Former Midland Power Utility Rate Zone
AB49: Newmarket-Tay Power Distribution Ltd.-For Newmarket-Tay Power Main Rate Zone
AB50: Niagara Peninsula Energy Inc.
AB51: Niagara-on-the-Lake Hydro Inc.
AB52: North Bay Hydro Distribution Limited - Espanola service territory
AB53: North Bay Hydro Distribution Limited - North Bay service territory
AB54: Northern Ontario Wires Inc.
AB55: Oakville Hydro Electricity Distribution Inc.
AB56: Orangeville Hydro Limited
AB57: Orillia Power Distribution Corporation
AB58: Oshawa PUC Networks Inc.
AB59: Ottawa River Power Corporation
AB60: Peterborough Distribution Incorporated
AB61: PUC Distribution Inc.
AB62: Renfrew Hydro Inc.
AB63: Rideau St. Lawrence Distribution Inc.
AB64: Sioux Lookout Hydro Inc.
AB65: Synergy North Corporation-Kenora Rate Zone
AB66: Synergy North Corporation-Thunder Bay Rate Zone
AB67: Tillsonburg Hydro Inc.
AB68: Toronto Hydro-Electric System Limited
AB69: Wasaga Distribution Inc.
AB70: Waterloo North Hydro Inc.
AB71: Welland Hydro-Electric System Corp.
AB72: Wellington North Power Inc.
AB73: Westario Power Inc.

Sheet Table of Contents
AA1: 1
AA2: 2012
AA3: 2013
AA4: 2014
AA5: 2015
AA6: 2016
D10: 1. Info
D11: S. Summary
D12: A. Data Input Sheet
D13: B. Tax Rates & Exemptions
C16: Historical Year | D16: H0 - PILs, Tax Provision Historical Year
D17: H1 - Adj. Taxable Income Historical Year
D18: H4 - Schedule 4 Loss Carry Forward Historical Year
D19: H8 - Schedule 8 Historical
D20: H13 - Schedule 13 Tax Reserves Historical
C22: Bridge Year | D22: B0 - PILs,Tax Provision Bridge Year
D23: B1 - Adj. Taxable Income Bridge Year
D24: B4 - Schedule 4 Loss Carry Forward Bridge Year
D25: B8 - Schedule 8 CCA Bridge Year
D26: B13 - Schedule 13 Tax Reserves Bridge Year
C28: Test Year | D28: T0 PILs, Tax Provision Test Year
D29: T1 Taxable Income Test Year
D30: T4 Schedule 4 Loss Carry Forward Test Year
D31: T8 Schedule 8 CCA Test Year
D32: T13 Schedule 13 Reserve Test Year

Sheet S. Summary
B7: No inputs required on this worksheet.
D9: Inputs on Service Revenue Requirement Worksheet
D10: The Service Revenue Requirement is in the 'Revenue Requirement Workform' - Tab 3.
D12: Item | G12: Working Paper Reference
D14: Adjustments required to arrive at taxable income | G14: as below | H14: =+H25 -> -2172511.037
D15: Test Year - Payments in Lieu of Taxes (PILs) | G15: T0 | H15: =+'T0 PILs,Tax Provision Test'!J25 -> 186131.8091
D16: Test Year - Grossed-up PILs | G16: T0 | H16: =+'T0 PILs,Tax Provision Test'!J30 -> 253240.5566
D17: Effective Federal Tax Rate | G17: T0 | H17: =+'T0 PILs,Tax Provision Test'!G14 -> 0.15
D18: Effective Ontario Tax Rate | G18: T0 | H18: =+'T0 PILs,Tax Provision Test'!G13 -> 0.115
D22: Calculation of Adjustments required to arrive at Taxable Income
D23: Regulatory Income (before income taxes) | G23: T1 | H23: ='T1 Sch 1 Taxable Income Test'!F12 -> 2874895.222
D24: Taxable Income | G24: T1 | H24: ='T1 Sch 1 Taxable Income Test'!F122 -> 702384.1852
D25: Difference | G25: calculated | H25: =+H24-H23 -> -2172511.037 | I25: as above

Sheet S1. Integrity Checks
A11: Integrity Checks
A13: The applicant must ensure the following integrity checks have been completed and confirm this is the case in the table below, or provide an explanation if this is not the case:
B15: Item | C15: Utility Confirmation (Y/N) | D15: Notes
A16: 1 | B16: The depreciation and amortization added back in the application’s PILs model agree with the numbers disclosed in the rate base section of the application | C16: Y
A17: 2 | B17: The capital additions and deductions in the CCA Schedule 8 agree with the rate base section for historical, bridge and test years | C17: Y
A18: 3 | B18: Schedule 8 of the most recent federal T2 tax return filed with the application has a closing December 31 historical year UCC that agrees with the opening (January 1) bridge year UCC. If the amounts do not agree, then the applicant must provide a reconciliation with explanations. Distributors must segregate non-distribution tax amounts on Schedule 8. | C18: Y
A19: 4 | B19: The CCA deductions in the application’s PILs tax model for historical, bridge and test years (as applicable) agree with the numbers in the CCA Schedule 8 for the same years filed in the application | C19: Y
A20: 5 | B20: Loss carry-forwards, if any, from prior year tax returns' Schedule 4 agree with those disclosed in the application | C20: Y
A21: 6 | B21: A discussion is included in the application as to when the loss carry-forwards, if any, will be fully utilized | C21: Y
A22: 7 | B22: CCA is maximized even if there are tax loss carry-forwards | C22: Y
A23: 8 | B23: Other post-employment benefits and pension expenses that are added back on Schedule 1 to reconcile accounting income to net income for tax purposes agree with the OM&A analysis for compensation. The amounts deducted are reasonable when compared with the notes to the audited financial statements, Financial Services Commission of Ontario reports, and actuarial valuations. | C23: Y
A24: 9 | B24: The income tax rate used to calculate the tax expense is consistent with the utility’s actual tax facts and evidence filed in the application | C24: Y

Sheet A. Data Input Sheet
G7: Test Year | H7: Bridge Year
C9: Rate Base | F9: S | G9: 76786731.35 | H9: 69800449.87
C11: Return on Ratebase
C12: Deemed ShortTerm Debt % | E12: 0.04 | F12: T | G12: =G9*E12 -> 3071469.254 | H12: W = S * T
C13: Deemed Long Term Debt % | E13: 0.56 | F13: U | G13: =G9*E13 -> 43000569.56 | H13: X = S * U
C14: Deemed Equity % | E14: 0.4 | F14: V | G14: =G9*E14 -> 30714692.54 | H14: Y = S * V
C16: Short Term Interest Rate | E16: 0.0479 | F16: Z | G16: =G12*E16 -> 147123.3773 | H16: AC = W * Z
C17: Long Term Interest | E17: 0.0372005011 | F17: AA | G17: =G13*E17 -> 1599642.735 | H17: AD = X * AA
C18: Return on Equity (Regulatory Income) | E18: 0.0936 | F18: AB | G18: =G14*E18 -> 2874895.222 | H18: AE = Y * AB | I18: T1
C19: Return on Rate Base | G19: =SUM(G16:G18) -> 4621661.334 | H19: AF = AC + AD + AE
C24: Questions that must be answered | G24: Historical Year | H24: Bridge Year | I24: Test Year
C26: 1. Does the applicant have any Investment Tax Credits (ITC)? | G26: Yes | H26: No | I26: No
C28: 2. Does the applicant have any SRED Expenditures? | G28: No | H28: No | I28: No
C30: 3. Does the applicant have any Capital Gains or Losses for tax purposes? | G30: No | H30: No | I30: No
C32: 4. Does the applicant have any Capital Leases? | G32: Yes | H32: Yes | I32: Yes
C34: 5. Does the applicant have any Loss Carry-Forwards (non-capital or net capital)? | G34: No | H34: No | I34: No
C36: 6. Since 1999, has the applicant acquired another regulated applicant's assets? | G36: No | H36: No | I36: No
C38: 7. Did the applicant pay dividends? | G38: Yes | H38: Yes | I38: Yes
C39: If Yes, please describe the tax treatment in the manager's summary.
C41: 8. Did the applicant elect to capitalize interest incurred on CWIP for tax purposes? | G41: No | H41: No | I41: No

Sheet B. Tax Rates & Exemptions
C9: Tax Rates
C10: Federal & Provincial | E10: Effective | F10: Effective | G10: Effective | H10: Effective | I10: Effective | J10: Effective | K10: Effective
C11: As of MMM XX, 2019 | E11: 2016-01-01 | F11: =DATE(YEAR(E11) + 1, MONTH(E11), DAY(E11)) -> 2017-01-01 | G11: =DATE(YEAR(F11) + 1, MONTH(F11), DAY(F11)) -> 2018-01-01 | H11: 2019-01-01 | I11: 2020-01-01 | J11: 2021-01-01 | K11: 2022-01-01
C13: Federal income tax
C14: General Corporate Rate | E14: 0.38 | F14: 0.38 | G14: 0.38 | H14: 0.38 | I14: 0.38 | J14: 0.38 | K14: 0.38
C15: Federal Tax Abatement | E15: -0.1 | F15: -0.1 | G15: -0.1 | H15: -0.1 | I15: -0.1 | J15: -0.1 | K15: -0.1
C16: Adjusted Federal Rate | E16: =SUM(E14:E15) -> 0.28 | F16: 0.28 | G16: 0.28 | H16: 0.28 | I16: 0.28 | J16: =SUM(J14:J15) -> 0.28 | K16: 0.28
C18: Rate Reduction | E18: -0.13 | F18: -0.13 | G18: -0.13 | H18: -0.13 | I18: -0.13 | J18: -0.13 | K18: -0.13
C19: Federal Income Tax | E19: =E16+E18 -> 0.15 | F19: 0.15 | G19: 0.15 | H19: 0.15 | I19: 0.15 | J19: =J16+J18 -> 0.15 | K19: 0.15
C21: Ontario Income Tax | E21: 0.115 | F21: 0.115 | G21: 0.115 | H21: 0.115 | I21: 0.115 | J21: 0.115 | K21: 0.115
C23: Combined Federal and Ontario | E23: =E19+E21 -> 0.265 | F23: 0.265 | G23: 0.265 | H23: =H19+H21 -> 0.265 | I23: 0.265 | J23: =J19+J21 -> 0.265 | K23: 0.265
C25: Federal & Ontario Small Business
C26: Federal Small Business Limit | E26: 500000 | F26: 500000 | G26: 500000 | H26: 500000 | I26: 500000 | J26: 500000 | K26: 500000
C27: Ontario Small Business Limit | E27: 500000 | F27: 500000 | G27: 500000 | H27: 500000 | I27: 500000 | J27: 500000 | K27: 500000
C29: Federal Small Business Rate | E29: 0.11 | F29: 0.105 | G29: 0.105 | H29: 0.1 | I29: 0.09 | J29: 0.09 | K29: 0.09
C31: Ontario Small Business Rate | E31: 0.045 | F31: 0.045 | G31: 0.035 | H31: 0.035 | I31: 0.032 | J31: 0.032 | K31: 0.032
C34: Notes
C35: 1. The Ontario Energy Board's proxy for taxable capital is rate base.
C36: 2. The appropriate Federal and Ontario small business rates are calculated in the Income/PILs Workform. The Federal and Ontario small business deduction:
C37: a. is applicable if taxable capital is below $10 million.
C38: b. is phased out with taxable capital of more than $10 million.
C39: c. is completely eliminated when the taxable capital is $15 million or more. Effective for the 2022 taxation year, the Federal small business deduction is revised to be completely eliminated when the taxable capital is $50 million or more.

Sheet H0 PILs,Tax Provision Hist
C6: PILs Tax Provision - Historical Year
C8: Note: Input the actual information from the tax returns for the historical year. | I8: Wires Only
C10: Regulatory Taxable Income | H10: H1 | I10: ='H1 Sch 1 Taxable Income Hist'!G115 -> 808207.24 | J10: A
C12: Ontario Income Taxes
C13: Income tax payable | D13: Ontario Income Tax | F13: B | H13: C = A * B
C15: Small business credit | D15: Ontario Small Business Threshold | E15: =IF(I10>'B. Tax Rates & Exemptions'!E27,'B. Tax Rates & Exemptions'!E27,0) -> 500000 | F15: D
D16: Rate reduction (negative) | F16: E | H16: F = D * E
C20: Ontario Income tax | I20: =SUM(G13:G19) -> 0 | J20: J = C + F
C23: Combined Tax Rate and PILs | D23: Ontario Tax Rate (Maximum 11.5%) | G23: 0.115 | H23: B
D24: Federal tax rate (Maximum 15%) | G24: 0.15 | H24: C
D25: Combined tax rate (Maximum 26.5%) | I25: =SUM(G23:G24) -> 0.265 | J25: D = B+C
C28: Total Income Taxes | I28: =I10*I25 -> 214174.9186 | J28: E = A * D
C30: Investment Tax Credits | J30: F
C31: Miscellaneous Tax Credits | I31: 0 | J31: G
C32: Total Tax Credits | I32: =SUM(I30:I31) -> 0 | J32: H = F + G
C34: Corporate PILs/Income Tax Provision for Historical Year | I34: =IF(I28-I32<0,0,I28-I32) -> 214174.9186 | J34: I = E - H

Sheet H1 Sch 1 Taxable Income Hist
C8: Adjusted Taxable Income - Historical Year
D11: T2S1 line # | E11: Total for Legal Entity | F11: Non-Distribution Eliminations | G11: Historic Wires Only
C12: Income before PILs/Taxes | D12: (A + 101 + 102) | E12: 2703000 | G12: =+E12-F12 -> 2703000
C13: Additions:
C14: Interest and penalties on taxes | D14: 103 | E14: 612.24 | G14: =+E14-F14 -> 612.24
C15: Amortization of tangible assets | D15: 104 | E15: 3584000 | G15: 3584000
C16: Amortization of intangible assets | D16: 106 | G16: 0
C17: Recapture of capital cost allowance from Schedule 8 | D17: 107 | G17: 0
C18: Income inclusion under subparagraph 13(38)(d)(iii) from Schedule 10 | D18: 108 | G18: 0
C19: Loss in equity of subsidiaries and affiliates | D19: 110 | G19: 0
C20: Loss on disposal of assets | D20: 111 | E20: 61000 | G20: 61000
C21: Charitable donations and gifts from Schedule 2 | D21: 112 | E21: 1250 | G21: 1250
C22: Taxable capital gains from Schedule 6 | D22: 113 | G22: 0
C23: Political contributions | D23: 114 | G23: 0
C24: Deferred and prepaid expenses | D24: 116 | G24: 0
C25: Scientific research expenditures deducted on financial statements | D25: 118 | G25: 0
C26: Capitalized interest | D26: 119 | G26: 0
C27: Non-deductible club dues and fees | D27: 120 | G27: 0
C28: Non-deductible meals and entertainment expense | D28: 121 | E28: 2073 | G28: 2073
C29: Non-deductible automobile expenses | D29: 122 | G29: 0
C30: Non-deductible life insurance premiums | D30: 123 | G30: 0
C31: Non-deductible company pension plans | D31: 124 | G31: 0
C32: Tax reserves deducted in prior year | D32: 125 | G32: 0
C33: Reserves from financial statements – balance at the end of the year | D33: 126 | E33: ='H13 Sch 13 Reserves Hist'!D51 -> 142732 | G33: 142732
C34: Soft costs on construction and renovation of buildings | D34: 127 | G34: 0
C35: Capital items expensed | D35: 206 | G35: 0
C36: Debt issue expense | D36: 208 | G36: 0
C37: Development expenses claimed in current year | D37: 212 | G37: 0
C38: Financing fees deducted in books | D38: 216 | G38: 0
C39: Gain on settlement of debt | D39: 220 | G39: 0
C40: Non-deductible advertising | D40: 226 | G40: 0
C41: Non-deductible interest | D41: 227 | G41: 0
C42: Non-deductible legal and accounting fees | D42: 228 | G42: 0
C43: Recapture of SR&ED expenditures | D43: 231 | E43: 18054 | G43: 18054
C44: Share issue expense | D44: 235 | G44: 0
C45: Write down of capital property | D45: 236 | G45: 0
C46: Amounts received in respect of qualifying environment trust per paragraphs 12(1)(z.1) and 12(1)(z.2) | D46: 237 | G46: 0
C47: Other additions
C48: Interest Expensed on Capital Leases | D48: 295 | G48: 0
C49: Realized Income from Deferred Credit Accounts | D49: 295 | G49: 0
C50: Pensions | D50: 295 | G50: 0
C51: Non-deductible penalties | D51: 295 | G51: 0
C52: Customer Deposits (ITA 20(1)(a)) | D52: 295 | E52: 7676000 | G52: 7676000
D53: 295 | G53: =+E53-F53 -> 0
C54: ARO Accretion expense | G54: 0
C55: Capital Contributions Received (ITA 12(1)(x)) | E55: 9002299 | G55: 9002299
C56: Lease Inducements Received (ITA 12(1)(x)) | G56: 0
C57: Deferred Revenue (ITA 12(1)(a)) | G57: 0
C58: Prior Year Investment Tax Credits received | G58: 0
C59: Amortization expensed in Distribution expenses | E59: 213148 | G59: 213148
C60: Amortization expensed of Capital Lease | E60: 30000 | G60: 30000
C61: Tax component of OCI | E61: 11709 | G61: 11709
G62: 0
G63: 0
G64: 0
G65: 0
G66: 0
G67: 0
G68: 0
C69: Total Additions | E69: =SUM(E13:E68) -> 20742877.24 | F69: =SUM(F13:F68) -> 0 | G69: =SUM(G13:G68) -> 20742877.24
C71: Deductions:
C72: Gain on disposal of assets per financial statements | D72: 401 | G72: =+E72-F72 -> 0
C73: Non-taxable dividends under section 83 | D73: 402 | G73: 0
C74: Capital cost allowance from Schedule 8 | D74: 403 | E74: 4661942 | G74: 4661942
C75: Terminal loss from Schedule 8 | D75: 404 | G75: 0
C76: Allowable business investment loss | D76: 406 | G76: 0
C77: Deferred and prepaid expenses | D77: 409 | G77: 0
C78: Scientific research expenses claimed in year | D78: 411 | G78: 0
C79: Tax reserves claimed in current year | D79: 413 | G79: 0
C80: Reserves from financial statements - balance at beginning of year | D80: 414 | E80: 162065 | G80: 162065
C81: Contributions to deferred income plans | D81: 416 | G81: 0
C82: Book income of joint venture or partnership | D82: 305 | G82: 0
C83: Equity in income from subsidiary or affiliates | D83: 306 | G83: 0
C84: Other deductions
C85: Interest capitalized for accounting deducted for tax | D85: 395 | G85: 0
C86: Capital Lease Payments | D86: 395 | E86: 26000 | G86: 26000
C87: Non-taxable imputed interest income on deferral and variance accounts | D87: 395 | G87: 0
C88: Customer Deposits (ITA 20(1)(m)) | D88: 395 | E88: 7676000 | G88: 7676000
D89: 395 | G89: 0
C90: ARO Payments - Deductible for Tax when Paid | G90: 0
C91: ITA 13(7.4) Election - Capital Contributions Received | E91: 8996458 | G91: 8996458
C92: ITA 13(7.4) Election - Apply Lease Inducement to cost of Leaseholds | G92: 0
C93: Deferred Revenue - ITA 20(1)(m) reserve | E93: 1115205 | G93: 1115205
C94: Principal portion of lease payments | G94: 0
C95: Lease Inducement Book Amortization credit to income | G95: 0
C96: Financing fees for tax ITA 20(1)(e) and (e.1) | G96: 0
G97: 0
G98: 0
G99: 0
G100: 0
G101: 0
G102: 0
G103: 0
G104: 0
C105: Total Deductions | E105: =SUM(E72:E104) -> 22637670 | F105: =SUM(F72:F104) -> 0 | G105: =SUM(G72:G104) -> 22637670
C107: Net Income for Tax Purposes | E107: =+E12+E69-E105 -> 808207.24 | F107: =+F12+F69-F105 -> 0 | G107: =+G12+G69-G105 -> 808207.24
C109: Charitable donations from Schedule 2 | D109: 311 | G109: =+E109-F109 -> 0
C110: Taxable dividends received under section 112 or 113 | D110: 320 | G110: =+E110-F110 -> 0
C111: Non-capital losses of previous tax years from Schedule 4 | D111: 331 | G111: =+E111-F111 -> 0
C112: Net capital losses of previous tax years from Schedule 4 | D112: 332 | G112: =+E112-F112 -> 0
C113: Limited partnership losses of previous tax years from Schedule 4 | D113: 335 | G113: =+E113-F113 -> 0
C115: TAXABLE INCOME | E115: =+E107-SUM(E109:E113) -> 808207.24 | F115: =+F107-SUM(F109:F113) -> 0 | G115: =+G107-SUM(G109:G113) -> 808207.24 | H115: H0

Sheet H4 Sch 4 Loss Cfwd Hist
C9: Schedule 4 Loss Carry Forward - Historical
C11: Corporation Loss Continuity and Application
C13: Non-Capital Loss Carry Forward Deduction | F13: Total | G13: Non-Distribution Portion | H13: Utility Balance
C14: Actual Historical | H14: =F14-G14 -> 0 | I14: B4
C16: Net Capital Loss Carry Forward Deduction | F16: Total | G16: Non-Distribution Portion | H16: Utility Balance
C17: Actual Historical | H17: =F17-G17 -> 0 | I17: B4

Sheet H8 Sch 8 CCA Hist
C6: Schedule 8 - Historical Year
C11: Class | D11: Class Description | E11: UCC End of Year Historical per tax returns | F11: Less: Non-Distribution Portion | G11: UCC Regulated Historical Year | H11: Working Paper Reference
C12: 1 | D12: Buildings, Distribution System (acq'd post 1987) | E12: 18024111 | G12: =+E12-F12 -> 18024111 | H12: B8
C13: 1b | D13: Non-Residential Buildings [Reg. 1100(1)(a.1) election] | E13: 401430.5464 | G13: =+E13-F13 -> 401430.5464 | H13: B8
C14: 2 | D14: Distribution System (acq'd pre 1988) | G14: =+E14-F14 -> 0 | H14: B8
C15: 3 | D15: Buildings (acq'd pre 1988) | G15: 0 | H15: B8
C16: 6 | D16: Certain Buildings; Fences | G16: =+E16-F16 -> 0 | H16: B8
C17: 8 | D17: General Office Equipment, Furniture, Fixtures | E17: 813973 | G17: 813973 | H17: B8
C18: 10 | D18: Motor Vehicles, Fleet | E18: 138096 | G18: 138096 | H18: B8
C19: 10.1 | D19: Certain Automobiles | G19: 0 | H19: B8
C20: 12 | D20: Computer Application Software (Non-Systems) | G20: 0 | H20: B8
C21: 13 1 | D21: Lease # 1 | G21: 0 | H21: B8
C22: 13 2 | D22: Lease # 2 | G22: 0 | H22: B8
C23: 13 3 | D23: Lease # 3 | G23: 0 | H23: B8
C24: 13 4 | D24: Lease # 4 | G24: 0 | H24: B8
C25: 14 | D25: Limited Period Patents, Franchises, Concessions or Licences | G25: 0 | H25: B8
C26: 14.1 | D26: Eligible Capital Property (acq'd pre 2017) | E26: 141321 | G26: =+E26-F26 -> 141321 | H26: B8
C27: 14.1 | D27: Eligible Capital Property (acq'd post 2016) | G27: =+E27-F27 -> 0 | H27: B8
C28: 17 | D28: Elec. Generation Equip. (Non-Bldng, acq'd post Feb 27/00); Roads, Lots, Storage | G28: 0 | H28: B8
C29: 42 | D29: Fibre Optic Cable | G29: =+E29-F29 -> 0 | H29: B8
C30: 43.1 | D30: Certain Clean Energy/Energy-Efficient Generation Equipment | G30: 0 | H30: B8
C31: 43.2 | D31: Certain Clean Energy/Energy-Efficient Generation Equipment | G31: 0 | H31: B8
C32: 45 | D32: Computers & System Software (acq'd post Mar 22/04 and pre Mar 19/07) | E32: 8 | G32: 8 | H32: B8
C33: 46 | D33: Data Network Infrastructure Equipment (acq'd post Mar 22/04) | G33: 0 | H33: B8
C34: 47 | D34: Distribution System (acq'd post Feb 22/05) | E34: 30034027 | G34: 30034027 | H34: B8
C35: 50 | D35: General Purpose Computer Hardware & Software (acq'd post Mar 18/07) | E35: 38300 | G35: 38300 | H35: B8
C36: 95 | D36: CWIP | E36: 0 | G36: 0 | H36: B8
G37: 0
G38: 0
G39: 0
G40: 0
G41: 0
G42: 0
G43: 0
G44: 0
D45: SUB-TOTAL - UCC | E45: =SUM(E12:E44) -> 49591266.55 | F45: =SUM(F12:F44) -> 0 | G45: =SUM(G12:G44) -> 49591266.55

Sheet H13 Sch 13 Reserves Hist
C8: Schedule 13 Tax Reserves - Historical
C10: Continuity of Reserves
C13: Description | D13: Historical Balance as per tax returns | E13: Non-Distribution Eliminations | F13: Utility Only
C15: Capital gains reserves ss.40(1) | F15: =D15-E15 -> 0 | G15: B13
C16: Tax reserves not deducted for accounting purposes
C17: Reserve for doubtful accounts ss. 20(1)(l) | F17: =D17-E17 -> 0 | G17: B13
C18: Reserve for undelivered goods and services not rendered ss. 20(1)(m) | F18: 0 | G18: B13
C19: Reserve for unpaid amounts ss. 20(1)(n) | F19: 0 | G19: B13
C20: Debt & share issue expenses ss. 20(1)(e) | F20: 0 | G20: B13
C21: Other tax reserves | F21: 0 | G21: B13
F22: 0
F23: 0
F24: 0
F25: 0
F26: 0
C27: Total | D27: =SUM(D17:D26) -> 0 | E27: =SUM(E17:E26) -> 0 | F27: =SUM(F17:F26) -> 0
C29: Financial Statement Reserves (not deductible for Tax Purposes)
C30: General reserve for inventory obsolescence (non-specific) | F30: =D30-E30 -> 0 | G30: B13
C31: General reserve for bad debts | F31: 0 | G31: B13
C32: Accrued Employee Future Benefits: | F32: 0 | G32: B13
C33: - Medical and Life Insurance | F33: 0 | G33: B13
C34: -Short & Long-term Disability | F34: 0 | G34: B13
C35: -Accmulated Sick Leave | F35: 0 | G35: B13
C36: - Termination Cost | F36: 0 | G36: B13
C37: - Other Post-Employment Benefits | D37: 142732 | F37: 142732 | G37: B13
C38: Provision for Environmental Costs | F38: 0 | G38: B13
C39: Restructuring Costs | F39: 0 | G39: B13
C40: Accrued Contingent Litigation Costs | F40: 0 | G40: B13
C41: Accrued Self-Insurance Costs | F41: 0 | G41: B13
C42: Other Contingent Liabilities | F42: 0 | G42: B13
C43: Bonuses Accrued and Not Paid Within 180 Days of Year-End ss. 78(4) | F43: 0 | G43: B13
C44: Unpaid Amounts to Related Person and Not Paid Within 3 Taxation Years ss. 78(1) | F44: 0 | G44: B13
C45: Other | F45: 0 | G45: B13
F49: 0
F50: 0
C51: Total | D51: =SUM(D30:D50) -> 142732 | E51: =SUM(E30:E50) -> 0 | F51: =SUM(F30:F50) -> 142732

Sheet B0 PILs,Tax Provision Bridge
B6: PILS Tax Provision - Bridge Year
J8: Wires Only
I9: Reference
C10: Regulatory Taxable Income | I10: B1 | J10: ='B1 Sch 1 Taxable Income Bridge'!F111 -> 5633300.415 | K10: A
D12: Tax Rate | E12: Small Business Rate (If Applicable) | F12: Taxes Payable | G12: Effective Tax Rate
C13: Ontario (Max 11.5%) | D13: 0.115 | E13: =IF('A. Data Input Sheet'!H9<=10000000, ontario_SB, IF('A. Data Input Sheet'!H9>=15000000, ontariotax, IF(AND('A. Data Input Sheet'!H9>10000000, 'A. Data Input Sheet'!H9<15000000), ontario_SB+ ('A. Data Input Sheet'!H9 - 10000000)*(ontariotax - ontario_SB)/(15000000-10000000)))) -> 0.115 | F13: =IF(J10<500000,J10,500000)*E13+IF(J10>500000,J10-500000,0)*D13 -> 647829.5477 | G13: =IF(F13=0,0,+F13/J10) -> 0.115 | H13: B
C14: Federal (Max 15%) | D14: 0.15 | E14: =IF('A. Data Input Sheet'!H9<=10000000, Fed_SB_Bridge, IF('A. Data Input Sheet'!H9>=50000000, FedTax, IF(AND('A. Data Input Sheet'!H9>10000000, 'A. Data Input Sheet'!H9<50000000), Fed_SB_Bridge+ ('A. Data Input Sheet'!H9 - 10000000)*(FedTax -Fed_SB_Bridge)/(50000000-10000000)))) -> 0.15 | F14: =E14*IF(J10<500000,J10,500000)+IF(J10>500000,J10-500000,0)*D14 -> 844995.0623 | G14: =IF(F14=0,0,+F14/J10) -> 0.15 | H14: C
C16: Combined effective tax rate (Max 26.5%) | J16: =SUM(G13:G14) -> 0.265 | K16: D = B + C
C19: Total Income Taxes | J19: =IF(J10*J16<0,0,J10*J16) -> 1492824.61 | K19: E = A * D
C21: Investment Tax Credits | K21: F
C22: Miscellaneous Tax Credits | K22: G
C23: Total Tax Credits | J23: =SUM(J21:J22) -> 0 | K23: H = F + G
C25: Corporate PILs/Income Tax Provision for Bridge Year | J25: =IF(J19-J23<0,0,J19-J23) -> 1492824.61 | K25: I = E - H
C29: Note:
C30: 1. This is for the derivation of Bridge year PILs income tax expense and should not be used for Test year revenue requirement calculations.

Sheet B1 Sch 1 Taxable Income Bridge
B5: Adjusted Taxable Income - Bridge Year
D7: T2S1 line # | E7: Working Paper Reference | F7: Total for Regulated Utility
C8: Income before PILs/Taxes | D8: (A + 101 + 102) | F8: 3558240.25
C10: Additions:
C11: Interest and penalties on taxes | D11: 103
C12: Amortization of tangible assets | D12: 104 | F12: 4464726.06
C13: Amortization of intangible assets | D13: 106
C14: Recapture of capital cost allowance from Schedule 8 | D14: 107 | E14: B8 | F14: ='B8 Sch 8 CCA Bridge'!S43 -> 0
C15: Income inclusion under subparagraph 13(38)(d)(iii) | D15: 108
C16: Income or loss for tax purposes- joint ventures or partnerships | D16: 109
C17: Loss in equity of subsidiaries and affiliates | D17: 110
C18: Loss on disposal of assets | D18: 111
C19: Charitable donations and gifts from Schedule 2 | D19: 112
C20: Taxable capital gains | D20: 113
C21: Political contributions | D21: 114
C22: Deferred and prepaid expenses | D22: 116
C23: Scientific research expenditures deducted on financial statements | D23: 118
C24: Capitalized interest | D24: 119
C25: Non-deductible club dues and fees | D25: 120
C26: Non-deductible meals and entertainment expense | D26: 121 | F26: 5505
C27: Non-deductible automobile expenses | D27: 122
C28: Non-deductible life insurance premiums | D28: 123
C29: Non-deductible company pension plans | D29: 124
C30: Tax reserves deducted in prior year | D30: 125 | E30: B13 | F30: ='B13 Sch 13 Reserves Bridge'!G22 -> 0
C31: Reserves from financial statements- balance at end of year | D31: 126 | E31: B13 | F31: ='B13 Sch 13 Reserves Bridge'!K43 -> 186918
C32: Soft costs on construction and renovation of buildings | D32: 127
C33: Capital items expensed | D33: 206
C34: Debt issue expense | D34: 208
C35: Development expenses claimed in current year | D35: 212
C36: Financing fees deducted in books | D36: 216
C37: Gain on settlement of debt | D37: 220
C38: Non-deductible advertising | D38: 226
C39: Non-deductible interest | D39: 227
C40: Non-deductible legal and accounting fees | D40: 228
C41: Recapture of SR&ED expenditures | D41: 231
C42: Share issue expense | D42: 235
C43: Write down of capital property | D43: 236
C44: Amounts received in respect of qualifying environment trust per paragraphs 12(1)(z.1) and 12(1)(z.2) | D44: 237
C45: Other Additions
C46: Interest Expensed on Capital Leases | D46: 295
C47: Realized Income from Deferred Credit Accounts | D47: 295
C48: Pensions | D48: 295
C49: Non-deductible penalties | D49: 295
C50: Customer Deposits (ITA 20(1)(a)) | D50: 295 | F50: ='H1 Sch 1 Taxable Income Hist'!E88 -> 7676000
D51: 295
C52: ARO Accretion expense
C53: Capital Contributions Received (ITA 12(1)(x)) | F53: 65088472.83
C54: Lease Inducements Received (ITA 12(1)(x))
C55: Deferred Revenue (ITA 12(1)(a))
C56: Prior Year Investment Tax Credits received
C57: Amortization expensed in Distribution expenses | F57: 110901.43
C67: Total Additions | F67: =SUM(F10:F66) -> 77532523.32
C68: Deductions:
C69: Gain on disposal of assets per financial statements | D69: 401
C70: Dividends not taxable under section 83 | D70: 402
C71: Capital cost allowance from Schedule 8 | D71: 403 | E71: B8 | F71: ='B8 Sch 8 CCA Bridge'!U43 -> 5237705.935
C72: Terminal loss from Schedule 8 | D72: 404 | E72: B8 | F72: ='B8 Sch 8 CCA Bridge'!T43 -> 0
C73: Allowable business investment loss | D73: 406
C74: Deferred and prepaid expenses | D74: 409
C75: Scientific research expenses claimed in year | D75: 411
C76: Tax reserves claimed in current year | D76: 413 | E76: B13 | F76: ='B13 Sch 13 Reserves Bridge'!K22 -> 0
C77: Reserves from financial statements - balance at beginning of year | D77: 414 | E77: B13 | F77: ='B13 Sch 13 Reserves Bridge'!G43 -> 142732
C78: Contributions to deferred income plans | D78: 416
C79: Book income of joint venture or partnership | D79: 305
C80: Equity in income from subsidiary or affiliates | D80: 306
C81: Other deductions
C82: Interest capitalized for accounting deducted for tax | D82: 395
C83: Capital Lease Payments | D83: 395 | F83: 124909.44
C84: Non-taxable imputed interest income on deferral and variance accounts | D84: 395
C85: Customer Deposits (ITA 20(1)(m)) | D85: 395 | F85: 3040000
D86: 395
C87: ARO Payments - Deductible for Tax when Paid
C88: ITA 13(7.4) Election - Capital Contributions Received | F88: 65088472.83
C89: ITA 13(7.4) Election - Apply Lease Inducement to cost of Leaseholds
C90: Deferred Revenue - ITA 20(1)(m) reserve | F90: 1823642.95
C91: Principal portion of lease payments
C92: Lease Inducement Book Amortization credit to income
C93: Financing fees for tax ITA 20(1)(e) and (e.1)
C102: Total Deductions | E102: calculated | F102: =SUM(F69:F101) -> 75457463.15
C104: Net Income for Tax Purposes | E104: calculated | F104: =+F8+F67-F102 -> 5633300.415
C105: Charitable donations | D105: 311
C106: Taxable dividends received under section 112 or 113 | D106: 320
C107: Non-capital losses of previous tax years from Schedule 4 | D107: 331 | E107: B4 | F107: ='B4 Sch 4 Loss Cfwd Bridge'!G13*-1 -> 0
C108: Net capital losses of previous tax years from Schedule 4 | D108: 332 | E108: B4 | F108: ='B4 Sch 4 Loss Cfwd Bridge'!G20*-1 -> 0
C109: Limited partnership losses of previous tax years from Schedule 4 | D109: 335
C111: TAXABLE INCOME | E111: calculated | F111: =SUM(F104:F109) -> 5633300.415

Sheet B4 Sch 4 Loss Cfwd Bridge
C7: Corporation Loss Continuity and Application
C9: Schedule 4 Loss Carry Forward - Bridge Year
C11: Non-Capital Loss Carry Forward Deduction | G11: Total
C12: Actual Historical | F12: H4 | G12: ='H4 Sch 4 Loss Cfwd Hist'!H14 -> 0
C13: Amount to be used in Bridge Year | F13: B1 | G13: =IF('B1 Sch 1 Taxable Income Bridge'!F104<0,0,IF('B1 Sch 1 Taxable Income Bridge'!F104>G12,G12,'B1 Sch 1 Taxable Income Bridge'!F104)) -> 0
C14: Loss Carry Forward Generated in Bridge Year (if any) | F14: B1 | G14: =IF('B1 Sch 1 Taxable Income Bridge'!F104<0, 'B1 Sch 1 Taxable Income Bridge'!F104*-1, 0) -> 0
C15: Other Adjustments
C16: Balance available for use post Bridge Year | F16: calculated | G16: =G12-G13+G14+G15 -> 0 | H16: T4
C18: Net Capital Loss Carry Forward Deduction | G18: Total
C19: Actual Historical | F19: H4 | G19: ='H4 Sch 4 Loss Cfwd Hist'!H17 -> 0
C20: Amount to be used in Bridge Year
C21: Loss Carry Forward Generated in Bridge Year (if any) | F21: B1
C22: Other Adjustments
C23: Balance available for use post Bridge Year | F23: calculated | G23: =G19-G20+G21+G22 -> 0 | H23: T4

Sheet B8 Sch 8 CCA Bridge
B7: Schedule 8 CCA - Bridge Year
B9: (1) Class | C9: Class Description | D9: Working Paper Reference | E9: (2) Undepreciated capital cost (UCC) at the beginning of the bridge year | F9: (3) Cost of acquisitions during the year (new property must be available for use, except CWIP) | G9: (4) Cost of acquisitions from column 3 that are accelerated investment incentive property (AIIP) | H9: (5) Adjustments and transfers (enter amounts that will reduce the UCC as negatives) | I9: (6) Amount from column 5 that is assistance received or receivable during the year for a property, subsequent to its disposition | J9: (7) Amount from column 5 that is repaid during the year for a property, subsequent to its disposition | K9: (8) Proceeds of dispositions | L9: (9) UCC (column 2 plus column 3 plus or minus column 5 minus column 8) | M9: (10) Proceeds of disposition available to reduce the UCC of AIIP (column 8 plus column 6 minus column 3 plus column 4 minus column 7) (if negative, enter "0") | N9: (11) Net capital cost additions of AIIP acquired during the year (column 4 minus column 10) (if negative, enter "0") | O9: Relevant factor | P9: (12) UCC adjustment for AIIP acquired during the year (column 11 multiplied by the relevant factor) | Q9: (13) UCC adjustment for non-AIIP acquired during the year (0.5 multiplied by the result of column 3 minus column 4 minus column 6 plus column 7 minus column 8) (if negative, enter "0") | R9: (14) CCA Rate % | S9: (15) Recapture of CCA | T9: (16) Terminal Loss | U9: (17) CCA (for declining balance method, the result of column 9 plus column 12 minus column 13, multiplied by column 14) | W9: (18) UCC at the end of the bridge year (column 9 minus column 17) | X9: Working Paper Reference
B10: =IF(ISBLANK('H8 Sch 8 CCA Hist'!C12), "", 'H8 Sch 8 CCA Hist'!C12) -> 1 | C10: =IF(ISBLANK('H8 Sch 8 CCA Hist'!D12), "", 'H8 Sch 8 CCA Hist'!D12) -> Buildings, Distribution System (acq'd post 1987) | D10: H8 | E10: =IF(ISBLANK('H8 Sch 8 CCA Hist'!E12),0, 'H8 Sch 8 CCA Hist'!G12) -> 18024111 | L10: =IFERROR(E10+F10+H10-K10,0) -> 18024111 | M10: =IF((K10+I10-F10+G10-J10)<0,0,(K10+I10-F10+G10-J10)) -> 0 | N10: =IF((G10-M10)<0,0,(G10-M10)) -> 0 | O10: 0.5 | P10: =N10*O10 -> 0 | Q10: =IF((0.5*(F10-G10-I10+J10-K10))<0,0,(0.5*(F10-G10-I10+J10-K10))) -> 0 | R10: 0.04 | U10: =IF(OR(L10<0,T10>0),0,(L10+P10-Q10)*R10) -> 720964.44 | W10: =IF(L10<0,0,L10-T10-U10) -> 17303146.56 | X10: T8
B11: =IF(ISBLANK('H8 Sch 8 CCA Hist'!C13), "", 'H8 Sch 8 CCA Hist'!C13) -> 1b | C11: =IF(ISBLANK('H8 Sch 8 CCA Hist'!D13), "", 'H8 Sch 8 CCA Hist'!D13) -> Non-Residential Buildings [Reg. 1100(1)(a.1) election] | D11: H8 | E11: =IF(ISBLANK('H8 Sch 8 CCA Hist'!E13),0, 'H8 Sch 8 CCA Hist'!G13) -> 401430.5464 | F11: 75000 | G11: 75000 | L11: =IFERROR(E11+F11+H11-K11,"") -> 476430.5464 | M11: =IF((K11+I11-F11+G11-J11)<0,0,(K11+I11-F11+G11-J11)) -> 0 | N11: =IF((G11-M11)<0,0,(G11-M11)) -> 75000 | O11: 0.5 | P11: =N11*O11 -> 37500 | Q11: =IF((0.5*(F11-G11-I11+J11-K11))<0,0,(0.5*(F11-G11-I11+J11-K11))) -> 0 | R11: 0.06 | U11: =IF(OR(L11<0,T11>0),0,(L11+P11-Q11)*R11) -> 30835.83279 | W11: =IF(L11<0,0,L11-T11-U11) -> 445594.7136 | X11: T8
B12: =IF(ISBLANK('H8 Sch 8 CCA Hist'!C14), "", 'H8 Sch 8 CCA Hist'!C14) -> 2 | C12: =IF(ISBLANK('H8 Sch 8 CCA Hist'!D14), "", 'H8 Sch 8 CCA Hist'!D14) -> Distribution System (acq'd pre 1988) | D12: H8 | E12: =IF(ISBLANK('H8 Sch 8 CCA Hist'!E14),0, 'H8 Sch 8 CCA Hist'!G14) -> 0 | L12: 0 | M12: 0 | N12: 0 | P12: 0 | Q12: 0 | R12: 0.06 | U12: 0 | W12: 0 | X12: T8
B13: =IF(ISBLANK('H8 Sch 8 CCA Hist'!C15), "", 'H8 Sch 8 CCA Hist'!C15) -> 3 | C13: =IF(ISBLANK('H8 Sch 8 CCA Hist'!D15), "", 'H8 Sch 8 CCA Hist'!D15) -> Buildings (acq'd pre 1988) | D13: H8 | E13: =IF(ISBLANK('H8 Sch 8 CCA Hist'!E15),0, 'H8 Sch 8 CCA Hist'!G15) -> 0 | L13: 0 | M13: 0 | N13: 0 | P13: 0 | Q13: 0 | R13: 0.05 | U13: 0 | W13: 0 | X13: T8
B14: =IF(ISBLANK('H8 Sch 8 CCA Hist'!C16), "", 'H8 Sch 8 CCA Hist'!C16) -> 6 | C14: =IF(ISBLANK('H8 Sch 8 CCA Hist'!D16), "", 'H8 Sch 8 CCA Hist'!D16) -> Certain Buildings; Fences | D14: H8 | E14: =IF(ISBLANK('H8 Sch 8 CCA Hist'!E16),0, 'H8 Sch 8 CCA Hist'!G16) -> 0 | L14: 0 | M14: 0 | N14: 0 | O14: 0.5 | P14: 0 | Q14: 0 | R14: 0.1 | U14: 0 | W14: 0 | X14: T8
B15: =IF(ISBLANK('H8 Sch 8 CCA Hist'!C17), "", 'H8 Sch 8 CCA Hist'!C17) -> 8 | C15: =IF(ISBLANK('H8 Sch 8 CCA Hist'!D17), "", 'H8 Sch 8 CCA Hist'!D17) -> General Office Equipment, Furniture, Fixtures | D15: H8 | E15: =IF(ISBLANK('H8 Sch 8 CCA Hist'!E17),0, 'H8 Sch 8 CCA Hist'!G17) -> 813973 | F15: 198390 | G15: 198390 | L15: 1012363 | M15: 0 | N15: 198390 | O15: 0.5 | P15: 99195 | Q15: 0 | R15: 0.2 | U15: 222311.6 | W15: 790051.4 | X15: T8
B16: =IF(ISBLANK('H8 Sch 8 CCA Hist'!C18), "", 'H8 Sch 8 CCA Hist'!C18) -> 10 | C16: =IF(ISBLANK('H8 Sch 8 CCA Hist'!D18), "", 'H8 Sch 8 CCA Hist'!D18) -> Motor Vehicles, Fleet | D16: H8 | E16: =IF(ISBLANK('H8 Sch 8 CCA Hist'!E18),0, 'H8 Sch 8 CCA Hist'!G18) -> 138096 | F16: 475690 | G16: 475690 | L16: 613786 | M16: 0 | N16: 475690 | O16: 0.5 | P16: 237845 | Q16: 0 | R16: 0.3 | U16: 255489.3 | W16: 358296.7 | X16: T8
B17: =IF(ISBLANK('H8 Sch 8 CCA Hist'!C19), "", 'H8 Sch 8 CCA Hist'!C19) -> 10.1 | C17: =IF(ISBLANK('H8 Sch 8 CCA Hist'!D19), "", 'H8 Sch 8 CCA Hist'!D19) -> Certain Automobiles | D17: H8 | E17: =IF(ISBLANK('H8 Sch 8 CCA Hist'!E19),0, 'H8 Sch 8 CCA Hist'!G19) -> 0 | L17: 0 | M17: 0 | N17: 0 | O17: 0.5 | P17: 0 | Q17: 0 | R17: 0.3 | U17: 0 | W17: 0 | X17: T8
B18: =IF(ISBLANK('H8 Sch 8 CCA Hist'!C20), "", 'H8 Sch 8 CCA Hist'!C20) -> 12 | C18: =IF(ISBLANK('H8 Sch 8 CCA Hist'!D20), "", 'H8 Sch 8 CCA Hist'!D20) -> Computer Application Software (Non-Systems) | D18: H8 | E18: =IF(ISBLANK('H8 Sch 8 CCA Hist'!E20),0, 'H8 Sch 8 CCA Hist'!G20) -> 0 | L18: 0 | M18: 0 | N18: 0 | O18: 0 | P18: 0 | Q18: 0 | R18: 1 | U18: 0 | W18: 0 | X18: T8
B19: 13 1 | C19: =IF(ISBLANK('H8 Sch 8 CCA Hist'!D21), "", 'H8 Sch 8 CCA Hist'!D21) -> Lease # 1 | D19: H8 | E19: =IF(ISBLANK('H8 Sch 8 CCA Hist'!E21),0, 'H8 Sch 8 CCA Hist'!G21) -> 0 | L19: 0 | M19: 0 | N19: 0 | O19: 0 | P19: 0 | Q19: 0 | R19: NA | W19: 0 | X19: T8
B20: 13 2 | C20: =IF(ISBLANK('H8 Sch 8 CCA Hist'!D22), "", 'H8 Sch 8 CCA Hist'!D22) -> Lease # 2 | D20: H8 | E20: =IF(ISBLANK('H8 Sch 8 CCA Hist'!E22),0, 'H8 Sch 8 CCA Hist'!G22) -> 0 | L20: 0 | M20: 0 | N20: 0 | O20: 0 | P20: 0 | Q20: 0 | R20: NA | W20: 0 | X20: T8
B21: 13 3 | C21: =IF(ISBLANK('H8 Sch 8 CCA Hist'!D23), "", 'H8 Sch 8 CCA Hist'!D23) -> Lease # 3 | D21: H8 | E21: =IF(ISBLANK('H8 Sch 8 CCA Hist'!E23),0, 'H8 Sch 8 CCA Hist'!G23) -> 0 | L21: 0 | M21: 0 | N21: 0 | O21: 0 | P21: 0 | Q21: 0 | R21: NA | W21: 0 | X21: T8
B22: 13 4 | C22: =IF(ISBLANK('H8 Sch 8 CCA Hist'!D24), "", 'H8 Sch 8 CCA Hist'!D24) -> Lease # 4 | D22: H8 | E22: =IF(ISBLANK('H8 Sch 8 CCA Hist'!E24),0, 'H8 Sch 8 CCA Hist'!G24) -> 0 | L22: 0 | M22: 0 | N22: 0 | O22: 0 | P22: 0 | Q22: 0 | R22: NA | W22: 0 | X22: T8
B23: =IF(ISBLANK('H8 Sch 8 CCA Hist'!C25), "", 'H8 Sch 8 CCA Hist'!C25) -> 14 | C23: =IF(ISBLANK('H8 Sch 8 CCA Hist'!D25), "", 'H8 Sch 8 CCA Hist'!D25) -> Limited Period Patents, Franchises, Concessions or Licences | D23: H8 | E23: =IF(ISBLANK('H8 Sch 8 CCA Hist'!E25),0, 'H8 Sch 8 CCA Hist'!G25) -> 0 | L23: 0 | M23: 0 | N23: 0 | O23: 0 | P23: 0 | Q23: 0 | R23: NA | W23: 0 | X23: T8
B24: 14.1 | C24: Eligible Capital Property (acq'd pre Jan 1, 2017) | D24: H8 | E24: =IF(ISBLANK('H8 Sch 8 CCA Hist'!E26),0, 'H8 Sch 8 CCA Hist'!G26) -> 141321 | L24: 141321 | M24: 0 | N24: 0 | P24: 0 | Q24: 0 | R24: 0.07 | U24: =IF(OR(L24<0,T24>0),0,(L24+P24-Q24)*R24) -> 9892.47 | W24: 131428.53 | X24: T8
B25: 14.1 | C25: Eligible Capital Property (acq'd post Jan 1, 2017) | D25: H8 | E25: =IF(ISBLANK('H8 Sch 8 CCA Hist'!E27),0, 'H8 Sch 8 CCA Hist'!G27) -> 0 | L25: 0 | M25: 0 | N25: 0 | O25: 0.5 | P25: 0 | Q25: 0 | R25: 0.05 | U25: 0 | W25: 0 | X25: T8
B26: =IF(ISBLANK('H8 Sch 8 CCA Hist'!C28), "", 'H8 Sch 8 CCA Hist'!C28) -> 17 | C26: =IF(ISBLANK('H8 Sch 8 CCA Hist'!D28), "", 'H8 Sch 8 CCA Hist'!D28) -> Elec. Generation Equip. (Non-Bldng, acq'd post Feb 27/00); Roads, Lots, Storage | D26: H8 | E26: =IF(ISBLANK('H8 Sch 8 CCA Hist'!E28),0, 'H8 Sch 8 CCA Hist'!G28) -> 0 | L26: 0 | M26: 0 | N26: 0 | O26: 0.5 | P26: 0 | Q26: 0 | R26: 0.08 | U26: 0 | W26: 0 | X26: T8
B27: =IF(ISBLANK('H8 Sch 8 CCA Hist'!C29), "", 'H8 Sch 8 CCA Hist'!C29) -> 42 | C27: =IF(ISBLANK('H8 Sch 8 CCA Hist'!D29), "", 'H8 Sch 8 CCA Hist'!D29) -> Fibre Optic Cable | D27: H8 | E27: =IF(ISBLANK('H8 Sch 8 CCA Hist'!E29),0, 'H8 Sch 8 CCA Hist'!G29) -> 0 | L27: 0 | M27: 0 | N27: 0 | O27: 0.5 | P27: 0 | Q27: 0 | R27: 0.12 | U27: 0 | W27: 0 | X27: T8
B28: =IF(ISBLANK('H8 Sch 8 CCA Hist'!C30), "", 'H8 Sch 8 CCA Hist'!C30) -> 43.1 | C28: =IF(ISBLANK('H8 Sch 8 CCA Hist'!D30), "", 'H8 Sch 8 CCA Hist'!D30) -> Certain Clean Energy/Energy-Efficient Generation Equipment | D28: H8 | E28: =IF(ISBLANK('H8 Sch 8 CCA Hist'!E30),0, 'H8 Sch 8 CCA Hist'!G30) -> 0 | L28: 0 | M28: 0 | N28: 0 | O28: =(2+(1/3)) -> 2.333333333 | P28: 0 | Q28: 0 | R28: 0.3 | U28: 0 | W28: 0 | X28: T8
B29: =IF(ISBLANK('H8 Sch 8 CCA Hist'!C31), "", 'H8 Sch 8 CCA Hist'!C31) -> 43.2 | C29: =IF(ISBLANK('H8 Sch 8 CCA Hist'!D31), "", 'H8 Sch 8 CCA Hist'!D31) -> Certain Clean Energy/Energy-Efficient Generation Equipment | D29: H8 | E29: =IF(ISBLANK('H8 Sch 8 CCA Hist'!E31),0, 'H8 Sch 8 CCA Hist'!G31) -> 0 | L29: 0 | M29: 0 | N29: 0 | O29: 1 | P29: 0 | Q29: 0 | R29: 0.5 | U29: 0 | W29: 0 | X29: T8
B30: =IF(ISBLANK('H8 Sch 8 CCA Hist'!C32), "", 'H8 Sch 8 CCA Hist'!C32) -> 45 | C30: =IF(ISBLANK('H8 Sch 8 CCA Hist'!D32), "", 'H8 Sch 8 CCA Hist'!D32) -> Computers & System Software (acq'd post Mar 22/04 and pre Mar 19/07) | D30: H8 | E30: =IF(ISBLANK('H8 Sch 8 CCA Hist'!E32),0, 'H8 Sch 8 CCA Hist'!G32) -> 8 | L30: 8 | M30: 0 | N30: 0 | P30: 0 | Q30: 0 | R30: 0.45 | U30: 3.6 | W30: 4.4 | X30: T8
B31: =IF(ISBLANK('H8 Sch 8 CCA Hist'!C33), "", 'H8 Sch 8 CCA Hist'!C33) -> 46 | C31: =IF(ISBLANK('H8 Sch 8 CCA Hist'!D33), "", 'H8 Sch 8 CCA Hist'!D33) -> Data Network Infrastructure Equipment (acq'd post Mar 22/04) | D31: H8 | E31: =IF(ISBLANK('H8 Sch 8 CCA Hist'!E33),0, 'H8 Sch 8 CCA Hist'!G33) -> 0 | L31: 0 | M31: 0 | N31: 0 | O31: 0.5 | P31: 0 | Q31: 0 | R31: 0.3 | U31: 0 | W31: 0 | X31: T8
B32: =IF(ISBLANK('H8 Sch 8 CCA Hist'!C34), "", 'H8 Sch 8 CCA Hist'!C34) -> 47 | C32: =IF(ISBLANK('H8 Sch 8 CCA Hist'!D34), "", 'H8 Sch 8 CCA Hist'!D34) -> Distribution System (acq'd post Feb 22/05) | D32: H8 | E32: =IF(ISBLANK('H8 Sch 8 CCA Hist'!E34),0, 'H8 Sch 8 CCA Hist'!G34) -> 30034027 | F32: 10329616.94 | G32: =F32 -> 10329616.94 | L32: 40363643.94 | M32: 0 | N32: 10329616.94 | O32: 0.5 | P32: 5164808.468 | Q32: 0 | R32: 0.08 | U32: 3642276.192 | W32: 36721367.74 | X32: T8
B33: =IF(ISBLANK('H8 Sch 8 CCA Hist'!C35), "", 'H8 Sch 8 CCA Hist'!C35) -> 50 | C33: =IF(ISBLANK('H8 Sch 8 CCA Hist'!D35), "", 'H8 Sch 8 CCA Hist'!D35) -> General Purpose Computer Hardware & Software (acq'd post Mar 18/07) | D33: H8 | E33: =IF(ISBLANK('H8 Sch 8 CCA Hist'!E35),0, 'H8 Sch 8 CCA Hist'!G35) -> 38300 | F33: 405900 | G33: =F33 -> 405900 | L33: 444200 | M33: 0 | N33: 405900 | O33: 0.5 | P33: 202950 | Q33: 0 | R33: 0.55 | U33: 355932.5 | W33: 88267.5 | X33: T8
B34: =IF(ISBLANK('H8 Sch 8 CCA Hist'!C36), "", 'H8 Sch 8 CCA Hist'!C36) -> 95 | C34: =IF(ISBLANK('H8 Sch 8 CCA Hist'!D36), "", 'H8 Sch 8 CCA Hist'!D36) -> CWIP | D34: H8 | E34: =IF(ISBLANK('H8 Sch 8 CCA Hist'!E36),0, 'H8 Sch 8 CCA Hist'!G36) -> 0 | L34: 0 | M34: 0 | N34: 0 | O34: 0 | P34: 0 | Q34: 0 | R34: 0 | U34: 0 | W34: 0 | X34: T8
B35: =IF(ISBLANK('H8 Sch 8 CCA Hist'!C37), "", 'H8 Sch 8 CCA Hist'!C37) ->  | C35: =IF(ISBLANK('H8 Sch 8 CCA Hist'!D37), "", 'H8 Sch 8 CCA Hist'!D37) ->  | D35: H8 | E35: =IF(ISBLANK('H8 Sch 8 CCA Hist'!E37),0, 'H8 Sch 8 CCA Hist'!G37) -> 0 | L35: 0 | M35: 0 | N35: 0 | P35: 0 | Q35: 0 | W35: 0 | X35: T8
B36: =IF(ISBLANK('H8 Sch 8 CCA Hist'!C38), "", 'H8 Sch 8 CCA Hist'!C38) ->  | C36: =IF(ISBLANK('H8 Sch 8 CCA Hist'!D38), "", 'H8 Sch 8 CCA Hist'!D38) ->  | D36: H8 | E36: =IF(ISBLANK('H8 Sch 8 CCA Hist'!E38),0, 'H8 Sch 8 CCA Hist'!G38) -> 0 | L36: 0 | M36: 0 | N36: 0 | P36: 0 | Q36: 0 | W36: 0 | X36: T8
B37: =IF(ISBLANK('H8 Sch 8 CCA Hist'!C39), "", 'H8 Sch 8 CCA Hist'!C39) ->  | C37: =IF(ISBLANK('H8 Sch 8 CCA Hist'!D39), "", 'H8 Sch 8 CCA Hist'!D39) ->  | D37: H8 | E37: =IF(ISBLANK('H8 Sch 8 CCA Hist'!E39),0, 'H8 Sch 8 CCA Hist'!G39) -> 0 | L37: 0 | M37: 0 | N37: 0 | P37: 0 | Q37: 0 | W37: 0 | X37: T8
B38: =IF(ISBLANK('H8 Sch 8 CCA Hist'!C40), "", 'H8 Sch 8 CCA Hist'!C40) ->  | C38: =IF(ISBLANK('H8 Sch 8 CCA Hist'!D40), "", 'H8 Sch 8 CCA Hist'!D40) ->  | D38: H8 | E38: =IF(ISBLANK('H8 Sch 8 CCA Hist'!E40),0, 'H8 Sch 8 CCA Hist'!G40) -> 0 | L38: 0 | M38: 0 | N38: 0 | P38: 0 | Q38: 0 | W38: 0 | X38: T8
B39: =IF(ISBLANK('H8 Sch 8 CCA Hist'!C41), "", 'H8 Sch 8 CCA Hist'!C41) ->  | C39: =IF(ISBLANK('H8 Sch 8 CCA Hist'!D41), "", 'H8 Sch 8 CCA Hist'!D41) ->  | D39: H8 | E39: =IF(ISBLANK('H8 Sch 8 CCA Hist'!E41),0, 'H8 Sch 8 CCA Hist'!G41) -> 0 | L39: 0 | M39: 0 | N39: 0 | P39: 0 | Q39: 0 | W39: 0 | X39: T8
B40: =IF(ISBLANK('H8 Sch 8 CCA Hist'!C42), "", 'H8 Sch 8 CCA Hist'!C42) ->  | C40: =IF(ISBLANK('H8 Sch 8 CCA Hist'!D42), "", 'H8 Sch 8 CCA Hist'!D42) ->  | D40: H8 | E40: =IF(ISBLANK('H8 Sch 8 CCA Hist'!E42),0, 'H8 Sch 8 CCA Hist'!G42) -> 0 | L40: 0 | M40: 0 | N40: 0 | P40: 0 | Q40: 0 | W40: 0 | X40: T8
B41: =IF(ISBLANK('H8 Sch 8 CCA Hist'!C43), "", 'H8 Sch 8 CCA Hist'!C43) ->  | C41: =IF(ISBLANK('H8 Sch 8 CCA Hist'!D43), "", 'H8 Sch 8 CCA Hist'!D43) ->  | D41: H8 | E41: =IF(ISBLANK('H8 Sch 8 CCA Hist'!E43),0, 'H8 Sch 8 CCA Hist'!G43) -> 0 | L41: 0 | M41: 0 | N41: 0 | P41: 0 | Q41: 0 | W41: 0 | X41: T8
B42: =IF(ISBLANK('H8 Sch 8 CCA Hist'!C44), "", 'H8 Sch 8 CCA Hist'!C44) ->  | C42: =IF(ISBLANK('H8 Sch 8 CCA Hist'!D44), "", 'H8 Sch 8 CCA Hist'!D44) ->  | D42: H8 | E42: =IF(ISBLANK('H8 Sch 8 CCA Hist'!E44),0, 'H8 Sch 8 CCA Hist'!G44) -> 0 | L42: =IFERROR(E42+F42+H42-K42,"") -> 0 | M42: 0 | N42: 0 | P42: 0 | Q42: 0 | W42: 0 | X42: T8
C43: TOTALS | E43: =SUM(E10:E42) -> 49591266.55 | F43: =SUM(F10:F42) -> 11484596.94 | G43: =SUM(G10:G42) -> 11484596.94 | H43: 0 | I43: 0 | J43: 0 | K43: 0 | L43: =SUM(L10:L42) -> 61075863.48 | M43: =SUM(M10:M42) -> 0 | N43: =SUM(N10:N42) -> 11484596.94 | P43: 5742298.468 | Q43: 0 | S43: =SUM(S10:S42) -> 0 | T43: =SUM(T10:T42) -> 0 | U43: =SUM(U10:U42) -> 5237705.935 | V43: B1 | W43: =SUM(W10:W42) -> 55838157.55
B45: For additional details and guidance on calculating amounts in Schedule 8, refer to the notes to the Canada Revenue Agency published Schedule 8 - Capital Cost Allowance (CCA) (2018 and later tax years):
B46: https://www.canada.ca/content/dam/cra-arc/formspubs/pbg/t2sch8/t2sch8-19e.pdf

Sheet B13 Sch 13 Reserves Bridge
C7: Schedule 13 Tax Reserves - Bridge Year
C9: Continuity of Reserves
I10: Bridge Year Adjustments
C11: Description | D11: Reference | E11: Historical Utility Only | F11: Eliminate Amounts Not Relevant for Bridge Year | G11: Adjusted Utility Balance | I11: Additions | J11: Disposals | K11: Balance for Bridge Year | M11: Change During the Year | N11: Disallowed Expenses
C13: Capital gains reserves ss.40(1) | D13: H13 | E13: ='H13 Sch 13 Reserves Hist'!F15 -> 0 | G13: =SUM(E13:F13) -> 0 | K13: =G13+I13-J13 -> 0 | L13: T13 | M13: =+K13-G13 -> 0
C14: Tax Reserves Not Deducted for Accounting Purposes
C15: Reserve for doubtful accounts ss. 20(1)(l) | D15: H13 | E15: ='H13 Sch 13 Reserves Hist'!F17 -> 0 | G15: =SUM(E15:F15) -> 0 | K15: =G15+I15-J15 -> 0 | L15: T13 | M15: =+K15-G15 -> 0
C16: Reserve for goods and services not delivered ss. 20(1)(m) | D16: H13 | E16: ='H13 Sch 13 Reserves Hist'!F18 -> 0 | G16: 0 | K16: 0 | L16: T13 | M16: 0
C17: Reserve for unpaid amounts ss. 20(1)(n) | D17: H13 | E17: ='H13 Sch 13 Reserves Hist'!F19 -> 0 | G17: 0 | K17: 0 | L17: T13 | M17: 0
C18: Debt & share issue expenses ss. 20(1)(e) | D18: H13 | E18: ='H13 Sch 13 Reserves Hist'!F20 -> 0 | G18: 0 | K18: 0 | L18: T13 | M18: 0
C19: Other tax reserves | D19: H13 | E19: ='H13 Sch 13 Reserves Hist'!F21 -> 0 | G19: 0 | K19: 0 | L19: T13 | M19: 0
E20: ='H13 Sch 13 Reserves Hist'!F25 -> 0 | G20: 0 | K20: 0 | M20: 0
E21: ='H13 Sch 13 Reserves Hist'!F26 -> 0 | G21: 0 | K21: 0 | M21: 0
C22: Total | E22: =SUM(E15:E21) -> 0 | F22: 0 | G22: 0 | H22: B1 | I22: 0 | J22: 0 | K22: 0 | L22: B1 | M22: 0 | N22: 0
E23: 0
C24: Financial statement reserves (not deductible for tax purposes)
C25: General Reserve for Inventory Obsolescence (non-specific) | D25: H13 | E25: ='H13 Sch 13 Reserves Hist'!F30 -> 0 | G25: =SUM(E25:F25) -> 0 | K25: =G25+I25-J25 -> 0 | L25: T13 | M25: =+K25-G25 -> 0
C26: General Reserve for Bad Debts | D26: H13 | E26: ='H13 Sch 13 Reserves Hist'!F31 -> 0 | G26: 0 | K26: 0 | L26: T13 | M26: 0
C27: Accrued Employee Future Benefits: | D27: H13 | E27: ='H13 Sch 13 Reserves Hist'!F32 -> 0 | G27: 0 | K27: 0 | L27: T13 | M27: 0
C28: - Medical and Life Insurance | D28: H13 | E28: ='H13 Sch 13 Reserves Hist'!F33 -> 0 | G28: 0 | K28: 0 | L28: T13 | M28: 0
C29: - Short & Long-term Disability | D29: H13 | E29: ='H13 Sch 13 Reserves Hist'!F34 -> 0 | G29: 0 | K29: 0 | L29: T13 | M29: 0
C30: - Accumulated Sick Leave | D30: H13 | E30: ='H13 Sch 13 Reserves Hist'!F35 -> 0 | G30: 0 | K30: 0 | L30: T13 | M30: 0
C31: - Termination Cost | D31: H13 | E31: ='H13 Sch 13 Reserves Hist'!F36 -> 0 | G31: 0 | K31: 0 | L31: T13 | M31: 0
C32: - Other Post-Employment Benefits | D32: H13 | E32: ='H13 Sch 13 Reserves Hist'!F37 -> 142732 | G32: 142732 | I32: 44186 | K32: 186918 | L32: T13 | M32: 44186
C33: Provision for Environmental Costs | D33: H13 | E33: ='H13 Sch 13 Reserves Hist'!F38 -> 0 | G33: 0 | K33: 0 | L33: T13 | M33: 0
C34: Restructuring Costs | D34: H13 | E34: ='H13 Sch 13 Reserves Hist'!F39 -> 0 | G34: 0 | K34: 0 | L34: T13 | M34: 0
C35: Accrued Contingent Litigation Costs | D35: H13 | E35: ='H13 Sch 13 Reserves Hist'!F40 -> 0 | G35: 0 | K35: 0 | L35: T13 | M35: 0
C36: Accrued Self-Insurance Costs | D36: H13 | E36: ='H13 Sch 13 Reserves Hist'!F41 -> 0 | G36: 0 | K36: 0 | L36: T13 | M36: 0
C37: Other Contingent Liabilities | D37: H13 | E37: ='H13 Sch 13 Reserves Hist'!F42 -> 0 | G37: 0 | K37: 0 | L37: T13 | M37: 0
C38: Bonuses Accrued and Not Paid Within 180 Days of Year-End ss. 78(4) | D38: H13 | E38: ='H13 Sch 13 Reserves Hist'!F43 -> 0 | G38: 0 | K38: 0 | L38: T13 | M38: 0
C39: Unpaid Amounts to Related Person and Not Paid Within 3 Taxation Years ss. 78(1) | D39: H13 | E39: ='H13 Sch 13 Reserves Hist'!F44 -> 0 | G39: 0 | K39: 0 | L39: T13 | M39: 0
C40: Other | D40: H13 | E40: ='H13 Sch 13 Reserves Hist'!F45 -> 0 | G40: 0 | K40: 0 | L40: T13 | M40: 0
E41: ='H13 Sch 13 Reserves Hist'!F49 -> 0 | G41: =SUM(E41:F41) -> 0 | K41: 0 | M41: =+K41-G41 -> 0
E42: ='H13 Sch 13 Reserves Hist'!F50 -> 0 | G42: =SUM(E42:F42) -> 0 | K42: 0 | M42: =+K42-G42 -> 0
C43: Total | E43: =SUM(E25:E42) -> 142732 | F43: =SUM(F25:F42) -> 0 | G43: 142732 | H43: B1 | I43: 44186 | J43: 0 | K43: 186918 | L43: B1 | M43: 44186 | N43: 0
E44: 0

Sheet T0 PILs,Tax Provision Test
T1: Rate Base | U1: Federal Tax Rate
T2: 500000 | U2: 0.11
T3: 10000000 | U3: 0.11
T4: =T3+100000 -> 10100000 | U4: 0.11
T5: =T4+100000 -> 10200000 | U5: 0.11
B6: PILs Tax Provision - Test Year | T6: 10300000 | U6: 0.11
T7: 10400000 | U7: 0.11
J8: Wires Only | T8: 10500000 | U8: 0.11
T9: 10600000 | U9: 0.11
C10: Regulatory Taxable Income | I10: T1 | J10: ='T1 Sch 1 Taxable Income Test'!F122 -> 702384.1852 | K10: A | T10: 10700000 | U10: 0.11
T11: 10800000 | U11: 0.11
D12: Tax Rate | E12: Small Business Rate (If Applicable) | F12: Taxes Payable | G12: Effective Tax Rate
C13: Ontario (Max 11.5%) | D13: 0.115 | E13: =IF(ratebase<=10000000, ontario_SB, IF(ratebase>=15000000, ontariotax, IF(AND(ratebase>10000000, ratebase<15000000), ontario_SB+ (ratebase - 10000000)*(ontariotax - ontario_SB)/(15000000-10000000)))) -> 0.115 | F13: =IF(J10<500000,J10,500000)*E13+IF(J10>500000,J10-500000,0)*D13 -> 80774.18129 | G13: =IF(F13=0,0,+F13/J10) -> 0.115 | H13: B
C14: Federal (Max 15%) | D14: 0.15 | E14: =IF(ratebase<=10000000, Fed_SB_Test, IF(ratebase>=50000000, FedTax, IF(AND(ratebase>10000000, ratebase<50000000), Fed_SB_Test+ (ratebase - 10000000)*(FedTax -Fed_SB_Test)/(50000000-10000000)))) -> 0.15 | F14: =E14*IF(J10<500000,J10,500000)+IF(J10>500000,J10-500000,0)*D14 -> 105357.6278 | G14: =IF(F14=0,0,+F14/J10) -> 0.15 | H14: C
C16: Combined effective tax rate (Max 26.5%) | J16: =SUM(G13:G14) -> 0.265 | K16: D = B + C | T16: =#REF!+100000 ->  | U16: =#REF!+0.112% -> 
U17: =U16+0.112% -> 
C19: Total Income Taxes | J19: =J10*J16 -> 186131.8091 | K19: E = A * D
U20: =U19+0.102% -> 
C21: Investment Tax Credits | K21: F | U21: =U20+0.102% -> 
C22: Miscellaneous Tax Credits | K22: G | U22: =U21+0.102% -> 
C23: Total Tax Credits | J23: =SUM(J21:J22) -> 0 | K23: H = F + G | U23: =U22+0.102% -> 
U24: =U23+0.102% -> 
C25: Corporate PILs/Income Tax Provision for Test Year | J25: =IF(J19-J23<0,0,J19-J23) -> 186131.8091 | K25: I = E - H | L25: S. Summary | U25: =U24+0.096% -> 
U26: =U25+0.096% -> 
C27: Corporate PILs/Income Tax Provision Gross Up 1 | H27: =(1-J16) -> 0.735 | I27: J = 1-D | J27: =J25/H27-J25 -> 67108.74749 | K27: K = I/J-I | U27: =U26+0.096% -> 
U28: =U27+0.096% -> 
U29: =U28+0.096% -> 
C30: Income Tax (grossed-up) | J30: =J25+J27 -> 253240.5566 | K30: L = K + I | L30: S. Summary | U30: =U29+0.088% -> 
U31: =U30+0.088% -> 
U32: =U31+0.088% -> 
C33: Note: | U33: =U32+0.088% -> 
C34: 1. This is for the derivation of revenue requirement and should not be used for sufficiency/deficiency calculations. | U34: =U33+0.088% -> 
U35: =U34+0.082% -> 
U36: =U35+0.082% -> 
U37: =U36+0.082% -> 
U38: =U37+0.082% -> 
U39: =U38+0.082% -> 
U40: =U39+0.076% -> 
U41: =U40+0.076% -> 
U42: =U41+0.076% -> 
U43: =U42+0.076% -> 
U44: 0.15

Sheet T1 Sch 1 Taxable Income Test
C10: Taxable Income - Test Year
E11: Working Paper Reference | F11: Test Year Taxable Income
C12: Net Income Before Taxes | E12: A. | F12: ='A. Data Input Sheet'!G18 -> 2874895.222
D14: T2 S1 line #
C15: Additions:
C16: Interest and penalties on taxes | D16: 103
C17: Amortization of tangible assets 2-4 ADJUSTED ACCOUNTING DATA P489 | D17: 104 | F17: 5076455.39
C18: Amortization of intangible assets 2-4 ADJUSTED ACCOUNTING DATA P490 | D18: 106
C19: Recapture of capital cost allowance from Schedule 8 | D19: 107 | E19: T8 | F19: ='T8 Sch 8 CCA Test'!S43 -> 0
C20: Income inclusion under subparagraph 13(38)(d)(iii) from Schedule 10 | D20: 108
C21: Loss in equity of subsidiaries and affiliates | D21: 110
C22: Loss on disposal of assets | D22: 111
C23: Charitable donations | D23: 112
C24: Taxable Capital Gains | D24: 113
C25: Political Donations | D25: 114
C26: Deferred and prepaid expenses | D26: 116
C27: Scientific research expenditures deducted on financial statements | D27: 118
C28: Capitalized interest | D28: 119
C29: Non-deductible club dues and fees | D29: 120
C30: Non-deductible meals and entertainment expense | D30: 121 | F30: 5515
C31: Non-deductible automobile expenses | D31: 122
C32: Non-deductible life insurance premiums | D32: 123
C33: Non-deductible company pension plans | D33: 124
C34: Tax reserves beginning of year | D34: 125 | E34: T13 | F34: ='T13 Sch 13 Reserves Test'!G22 -> 0
C35: Reserves from financial statements- balance at end of year | D35: 126 | E35: T13 | F35: ='T13 Sch 13 Reserves Test'!K43 -> 186918
C36: Soft costs on construction and renovation of buildings | D36: 127
C37: Book loss on joint ventures or partnerships | D37: 205
C38: Capital items expensed | D38: 206
C39: Debt issue expense | D39: 208
C40: Development expenses claimed in current year | D40: 212
C41: Financing fees deducted in books | D41: 216
C42: Gain on settlement of debt | D42: 220
C43: Non-deductible advertising | D43: 226
C44: Non-deductible interest | D44: 227
C45: Non-deductible legal and accounting fees | D45: 228
C46: Recapture of SR&ED expenditures | D46: 231
C47: Share issue expense | D47: 235
C48: Write down of capital property | D48: 236
C49: Amounts received in respect of qualifying environment trust per paragraphs 12(1)(z.1) and 12(1)(z.2) | D49: 237
C50: Other Additions
C51: Interest Expensed on Capital Leases | D51: 295
C52: Realized Income from Deferred Credit Accounts | D52: 295
C53: Pensions | D53: 295
C54: Non-deductible penalties | D54: 295
C55: Customer Deposits (ITA 20(1)(a)) | D55: 295 | F55: ='B1 Sch 1 Taxable Income Bridge'!F85 -> 3040000
D56: 295
D57: 295
D58: 295
C59: ARO Accretion expense
C60: Capital Contributions Received (ITA 12(1)(x)) | F60: 24260348.24
C61: Lease Inducements Received (ITA 12(1)(x))
C62: Deferred Revenue (ITA 12(1)(a))
C63: Prior Year Investment Tax Credits received
C64: Amortization expensed in Distribution expenses | F64: 110901.43
C74: Total Additions | F74: =SUM(F16:F73) -> 32680138.06
C75: Deductions:
C76: Gain on disposal of assets per financial statements | D76: 401
C77: Dividends not taxable under section 83 | D77: 402
C78: Capital cost allowance from Schedule 8 | D78: 403 | E78: T8 | F78: ='T8 Sch 8 CCA Test'!U43 -> 4994314.327
C79: Terminal loss from Schedule 8 | D79: 404 | E79: T8 | F79: ='T8 Sch 8 CCA Test'!T43 -> 0
C80: Allowable business investment loss | D80: 406
C81: Deferred and prepaid expenses | D81: 409
C82: Scientific research expenses claimed in year | D82: 411
C83: Tax reserves end of year | D83: 413 | E83: T13 | F83: ='T13 Sch 13 Reserves Test'!K22 -> 0
C84: Reserves from financial statements - balance at beginning of year | D84: 414 | E84: T13 | F84: ='T13 Sch 13 Reserves Test'!G43 -> 186918
C85: Contributions to deferred income plans | D85: 416
C86: Book income of joint venture or partnership | D86: 305
C87: Equity in income from subsidiary or affiliates | D87: 306
C88: Other deductions
C89: Interest capitalized for accounting deducted for tax | D89: 395
C90: Capital Lease Payments | D90: 395 | F90: 117136.38
C91: Non-taxable imputed interest income on deferral and variance accounts | D91: 395
C92: Customer Deposits (ITA 20(1)(m)) | D92: 395 | F92: 3040000
D93: 395
D94: 395
D95: 395
D96: 395
C97: ARO Payments - Deductible for Tax when Paid
C98: ITA 13(7.4) Election - Capital Contributions Received | F98: 24260348.24
C99: ITA 13(7.4) Election - Apply Lease Inducement to cost of Leaseholds
C100: Deferred Revenue - ITA 20(1)(m) reserve | F100: 2253932.15
C101: Principal portion of lease payments
C102: Lease Inducement Book Amortization credit to income
C103: Financing fees for tax ITA 20(1)(e) and (e.1)
C112: Total Deductions | E112: calculated | F112: =SUM(F76:F111) -> 34852649.1
C114: NET INCOME FOR TAX PURPOSES | E114: calculated | F114: =SUM(F12,F74)-F112 -> 702384.1852
C116: Charitable donations | D116: 311
C117: Taxable dividends received under section 112 or 113 | D117: 320
C118: Non-capital losses of previous tax years from Schedule 4 | D118: 331 | E118: T4 | F118: ='T4 Sch 4 Loss Cfwd Test'!I15 -> 0
C119: Net capital losses of previous tax years from Schedule 4 | D119: 332 | E119: T4 | F119: ='T4 Sch 4 Loss Cfwd Test'!I25 -> 0
C120: Limited partnership losses of previous tax years from Schedule 4 | D120: 335
C122: REGULATORY TAXABLE INCOME | E122: calculated | F122: =IF(F114<0,F114,F114-SUM(F116:F121)) -> 702384.1852 | G122: T0

Sheet T4 Sch 4 Loss Cfwd Test
C7: Schedule 4 Loss Carry Forward - Test Year
C9: Corporation Loss Continuity and Application
C11: Non-Capital Loss Carry Forward Deduction | F11: Working Paper Reference | G11: Total | H11: Non-Distribution Portion | I11: Utility Balance
C12: Actual/Estimated Bridge Year Carried Forward | F12: B4 | G12: ='B4 Sch 4 Loss Cfwd Bridge'!G16 -> 0 | I12: =G12-H12 -> 0
C13: Amount to be used in Test Year and Price Cap Years | F13: T1 | G13: =IF('T1 Sch 1 Taxable Income Test'!F114<0,0,IF('T1 Sch 1 Taxable Income Test'!F114>G12,G12,'T1 Sch 1 Taxable Income Test'!F114)) -> 0 | I13: =G13-H13 -> 0
C14: Number of years loss until next cost of service (i.e. years the loss is to be spread over)
C15: Amount to be used in Test Year | F15: calculated | G15: =IF(ISERROR(G13/G14),G13,G13/G14) -> 0 | I15: =G15-H15 -> 0
C16: Loss Carry Forward Generated in Test Year (if any) | F16: T1 | G16: =IF('T1 Sch 1 Taxable Income Test'!F114<0,'T1 Sch 1 Taxable Income Test'!F114*-1,0) -> 0 | I16: =G16-H16 -> 0
C17: Other Adjustments | I17: =G17-H17 -> 0
C18: Balance available for use in Future Years | F18: calculated | G18: =G12-G13+G16+G17 -> 0 | I18: =G18-H18 -> 0
C21: Net Capital Loss Carry Forward Deduction | G21: Total | H21: Non-Distribution Portion | I21: Utility Balance
C22: Actual/Estimated Bridge Year Carried Forward | F22: B4 | G22: ='B4 Sch 4 Loss Cfwd Bridge'!G23 -> 0 | I22: =G22-H22 -> 0
C23: Amount to be used in Test Year and Price Cap Years | I23: =G23-H23 -> 0
C24: Number of years loss until next cost of service (i.e. years the loss is to be spread over)
C25: Amount to be used in Test Year | F25: T1 | G25: =IF(ISERROR(G23/G24),G23,G23/G24) -> 0 | I25: =G25-H25 -> 0
C26: Loss Carry Forward Generated in Test Year (if any) | I26: =G26-H26 -> 0
C27: Other Adjustments | I27: =G27-H27 -> 0
C28: Balance available for use in Future Years | G28: =G22-G23+G26+G27 -> 0 | I28: =G28-H28 -> 0

Sheet T8 Sch 8 CCA Test
B7: Schedule 8 CCA - Test Year
B9: (1) Class | C9: Class Description | D9: Working Paper Reference | E9: (2) Undepreciated capital cost (UCC) at the beginning of the test year | F9: (3) Cost of acquisitions during the year (new property must be available for use, except CWIP) | G9: (4) Cost of acquisitions from column 3 that are accelerated investment incentive property (AIIP) | H9: (5) Adjustments and transfers (enter amounts that will reduce the UCC as negatives) | I9: (6) Amount from column 5 that is assistance received or receivable during the year for a property, subsequent to its disposition | J9: (7) Amount from column 5 that is repaid during the year for a property, subsequent to its disposition | K9: (8) Proceeds of dispositions | L9: (9) UCC (column 2 plus column 3 plus or minus column 5 minus column 8) | M9: (10) Proceeds of disposition available to reduce the UCC of AIIP (column 8 plus column 6 minus column 3 plus column 4 minus column 7) (if negative, enter "0") | N9: (11) Net capital cost additions of AIIP acquired during the year (column 4 minus column 10) (if negative, enter "0") | O9: Relevant factor | P9: (12) UCC adjustment for AIIP acquired during the year (column 11 multiplied by the relevant factor) | Q9: (13) UCC adjustment for non-AIIP acquired during the year (0.5 multiplied by the result of column 3 minus column 4 minus column 6 plus column 7 minus column 8) (if negative, enter "0") | R9: (14) CCA Rate % | S9: (15) Recapture of CCA | T9: (16) Terminal Loss | U9: (17) CCA (for declining balance method, the result of column 9 plus column 12 minus column 13, multiplied by column 14) | W9: (18) UCC at the end of the test year (column 9 minus column 17)
B10: =IF(ISBLANK('B8 Sch 8 CCA Bridge'!B10), "", 'B8 Sch 8 CCA Bridge'!B10) -> 1 | C10: =IF(ISBLANK('B8 Sch 8 CCA Bridge'!C10), "", 'B8 Sch 8 CCA Bridge'!C10) -> Buildings, Distribution System (acq'd post 1987) | D10: B8 | E10: =IF(ISBLANK('B8 Sch 8 CCA Bridge'!W10), "", 'B8 Sch 8 CCA Bridge'!W10) -> 17303146.56 | L10: =IFERROR(E10+F10+H10-K10,0) -> 17303146.56 | M10: =IF((K10+I10-F10+G10-J10)<0,0,(K10+I10-F10+G10-J10)) -> 0 | N10: =IF((G10-M10)<0,0,(G10-M10)) -> 0 | O10: 0 | P10: =N10*O10 -> 0 | Q10: =IF((0.5*(F10-G10-I10+J10-K10))<0,0,(0.5*(F10-G10-I10+J10-K10))) -> 0 | R10: 0.04 | U10: =IF(OR(L10<0,T10>0),0,(L10+P10-Q10)*R10) -> 692125.8624 | W10: =IF(L10<0,0,L10-T10-U10) -> 16611020.7
B11: =IF(ISBLANK('B8 Sch 8 CCA Bridge'!B11), "", 'B8 Sch 8 CCA Bridge'!B11) -> 1b | C11: =IF(ISBLANK('B8 Sch 8 CCA Bridge'!C11), "", 'B8 Sch 8 CCA Bridge'!C11) -> Non-Residential Buildings [Reg. 1100(1)(a.1) election] | D11: B8 | E11: =IF(ISBLANK('B8 Sch 8 CCA Bridge'!W11), "", 'B8 Sch 8 CCA Bridge'!W11) -> 445594.7136 | F11: 75000 | G11: 75000 | L11: =IFERROR(E11+F11+H11-K11,"") -> 520594.7136 | M11: =IF((K11+I11-F11+G11-J11)<0,0,(K11+I11-F11+G11-J11)) -> 0 | N11: =IF((G11-M11)<0,0,(G11-M11)) -> 75000 | O11: 0 | P11: =N11*O11 -> 0 | Q11: =IF((0.5*(F11-G11-I11+J11-K11))<0,0,(0.5*(F11-G11-I11+J11-K11))) -> 0 | R11: 0.06 | U11: =IF(OR(L11<0,T11>0),0,(L11+P11-Q11)*R11) -> 31235.68282 | W11: =IF(L11<0,0,L11-T11-U11) -> 489359.0308
B12: =IF(ISBLANK('B8 Sch 8 CCA Bridge'!B12), "", 'B8 Sch 8 CCA Bridge'!B12) -> 2 | C12: =IF(ISBLANK('B8 Sch 8 CCA Bridge'!C12), "", 'B8 Sch 8 CCA Bridge'!C12) -> Distribution System (acq'd pre 1988) | D12: B8 | E12: =IF(ISBLANK('B8 Sch 8 CCA Bridge'!W12), "", 'B8 Sch 8 CCA Bridge'!W12) -> 0 | L12: 0 | M12: 0 | N12: 0 | O12: 0 | P12: 0 | Q12: 0 | R12: 0.06 | U12: 0 | W12: 0
B13: =IF(ISBLANK('B8 Sch 8 CCA Bridge'!B13), "", 'B8 Sch 8 CCA Bridge'!B13) -> 3 | C13: =IF(ISBLANK('B8 Sch 8 CCA Bridge'!C13), "", 'B8 Sch 8 CCA Bridge'!C13) -> Buildings (acq'd pre 1988) | D13: B8 | E13: =IF(ISBLANK('B8 Sch 8 CCA Bridge'!W13), "", 'B8 Sch 8 CCA Bridge'!W13) -> 0 | L13: 0 | M13: 0 | N13: 0 | O13: 0 | P13: 0 | Q13: 0 | R13: 0.05 | U13: 0 | W13: 0
B14: =IF(ISBLANK('B8 Sch 8 CCA Bridge'!B14), "", 'B8 Sch 8 CCA Bridge'!B14) -> 6 | C14: =IF(ISBLANK('B8 Sch 8 CCA Bridge'!C14), "", 'B8 Sch 8 CCA Bridge'!C14) -> Certain Buildings; Fences | D14: B8 | E14: =IF(ISBLANK('B8 Sch 8 CCA Bridge'!W14), "", 'B8 Sch 8 CCA Bridge'!W14) -> 0 | L14: 0 | M14: 0 | N14: 0 | O14: 0 | P14: 0 | Q14: 0 | R14: 0.1 | U14: 0 | W14: 0
B15: =IF(ISBLANK('B8 Sch 8 CCA Bridge'!B15), "", 'B8 Sch 8 CCA Bridge'!B15) -> 8 | C15: =IF(ISBLANK('B8 Sch 8 CCA Bridge'!C15), "", 'B8 Sch 8 CCA Bridge'!C15) -> General Office Equipment, Furniture, Fixtures | D15: B8 | E15: =IF(ISBLANK('B8 Sch 8 CCA Bridge'!W15), "", 'B8 Sch 8 CCA Bridge'!W15) -> 790051.4 | F15: 117688 | G15: 117688 | L15: 907739.4 | M15: 0 | N15: 117688 | O15: 0 | P15: 0 | Q15: 0 | R15: 0.2 | U15: 181547.88 | W15: 726191.52
B16: =IF(ISBLANK('B8 Sch 8 CCA Bridge'!B16), "", 'B8 Sch 8 CCA Bridge'!B16) -> 10 | C16: =IF(ISBLANK('B8 Sch 8 CCA Bridge'!C16), "", 'B8 Sch 8 CCA Bridge'!C16) -> Motor Vehicles, Fleet | D16: B8 | E16: =IF(ISBLANK('B8 Sch 8 CCA Bridge'!W16), "", 'B8 Sch 8 CCA Bridge'!W16) -> 358296.7 | F16: 470000 | G16: 470000 | L16: 828296.7 | M16: 0 | N16: 470000 | O16: 0 | P16: 0 | Q16: 0 | R16: 0.3 | U16: 248489.01 | W16: 579807.69
B17: =IF(ISBLANK('B8 Sch 8 CCA Bridge'!B17), "", 'B8 Sch 8 CCA Bridge'!B17) -> 10.1 | C17: =IF(ISBLANK('B8 Sch 8 CCA Bridge'!C17), "", 'B8 Sch 8 CCA Bridge'!C17) -> Certain Automobiles | D17: B8 | E17: =IF(ISBLANK('B8 Sch 8 CCA Bridge'!W17), "", 'B8 Sch 8 CCA Bridge'!W17) -> 0 | L17: 0 | M17: 0 | N17: 0 | O17: 0 | P17: 0 | Q17: 0 | R17: 0.3 | U17: 0 | W17: 0
B18: =IF(ISBLANK('B8 Sch 8 CCA Bridge'!B18), "", 'B8 Sch 8 CCA Bridge'!B18) -> 12 | C18: =IF(ISBLANK('B8 Sch 8 CCA Bridge'!C18), "", 'B8 Sch 8 CCA Bridge'!C18) -> Computer Application Software (Non-Systems) | D18: B8 | E18: =IF(ISBLANK('B8 Sch 8 CCA Bridge'!W18), "", 'B8 Sch 8 CCA Bridge'!W18) -> 0 | L18: 0 | M18: 0 | N18: 0 | O18: 0 | P18: 0 | Q18: 0 | R18: 1 | U18: 0 | W18: 0
B19: 13 1 | C19: =IF(ISBLANK('B8 Sch 8 CCA Bridge'!C19), "", 'B8 Sch 8 CCA Bridge'!C19) -> Lease # 1 | D19: B8 | E19: =IF(ISBLANK('B8 Sch 8 CCA Bridge'!W19), "", 'B8 Sch 8 CCA Bridge'!W19) -> 0 | L19: 0 | M19: 0 | N19: 0 | O19: 0 | P19: 0 | Q19: 0 | R19: NA | W19: 0
B20: 13 2 | C20: =IF(ISBLANK('B8 Sch 8 CCA Bridge'!C20), "", 'B8 Sch 8 CCA Bridge'!C20) -> Lease # 2 | D20: B8 | E20: =IF(ISBLANK('B8 Sch 8 CCA Bridge'!W20), "", 'B8 Sch 8 CCA Bridge'!W20) -> 0 | L20: 0 | M20: 0 | N20: 0 | O20: 0 | P20: 0 | Q20: 0 | R20: NA | W20: 0
B21: 13 3 | C21: =IF(ISBLANK('B8 Sch 8 CCA Bridge'!C21), "", 'B8 Sch 8 CCA Bridge'!C21) -> Lease # 3 | D21: B8 | E21: =IF(ISBLANK('B8 Sch 8 CCA Bridge'!W21), "", 'B8 Sch 8 CCA Bridge'!W21) -> 0 | L21: 0 | M21: 0 | N21: 0 | O21: 0 | P21: 0 | Q21: 0 | R21: NA | W21: 0
B22: 13 4 | C22: =IF(ISBLANK('B8 Sch 8 CCA Bridge'!C22), "", 'B8 Sch 8 CCA Bridge'!C22) -> Lease # 4 | D22: B8 | E22: =IF(ISBLANK('B8 Sch 8 CCA Bridge'!W22), "", 'B8 Sch 8 CCA Bridge'!W22) -> 0 | L22: 0 | M22: 0 | N22: 0 | O22: 0 | P22: 0 | Q22: 0 | R22: NA | W22: 0
B23: =IF(ISBLANK('B8 Sch 8 CCA Bridge'!B23), "", 'B8 Sch 8 CCA Bridge'!B23) -> 14 | C23: =IF(ISBLANK('B8 Sch 8 CCA Bridge'!C23), "", 'B8 Sch 8 CCA Bridge'!C23) -> Limited Period Patents, Franchises, Concessions or Licences | D23: B8 | E23: =IF(ISBLANK('B8 Sch 8 CCA Bridge'!W23), "", 'B8 Sch 8 CCA Bridge'!W23) -> 0 | L23: 0 | M23: 0 | N23: 0 | O23: 0 | P23: 0 | Q23: 0 | R23: NA | W23: 0
B24: =IF(ISBLANK('B8 Sch 8 CCA Bridge'!B24), "", 'B8 Sch 8 CCA Bridge'!B24) -> 14.1 | C24: Eligible Capital Property (acq'd pre Jan 1, 2017) | D24: B8 | E24: =IF(ISBLANK('B8 Sch 8 CCA Bridge'!W24), "", 'B8 Sch 8 CCA Bridge'!W24) -> 131428.53 | L24: 131428.53 | M24: 0 | N24: 0 | O24: 0 | P24: 0 | Q24: 0 | R24: 0.07 | U24: =IF(OR(L24<0,T24>0),0,(L24+P24-Q24)*R24) -> 9199.9971 | W24: 122228.5329
B25: =IF(ISBLANK('B8 Sch 8 CCA Bridge'!B25), "", 'B8 Sch 8 CCA Bridge'!B25) -> 14.1 | C25: Eligible Capital Property (acq'd post Jan 1, 2017) | D25: B8 | E25: =IF(ISBLANK('B8 Sch 8 CCA Bridge'!W25), "", 'B8 Sch 8 CCA Bridge'!W25) -> 0 | L25: 0 | M25: 0 | N25: 0 | O25: 0 | P25: 0 | Q25: 0 | R25: 0.05 | U25: 0 | W25: 0
B26: =IF(ISBLANK('B8 Sch 8 CCA Bridge'!B26), "", 'B8 Sch 8 CCA Bridge'!B26) -> 17 | C26: =IF(ISBLANK('B8 Sch 8 CCA Bridge'!C26), "", 'B8 Sch 8 CCA Bridge'!C26) -> Elec. Generation Equip. (Non-Bldng, acq'd post Feb 27/00); Roads, Lots, Storage | D26: B8 | E26: =IF(ISBLANK('B8 Sch 8 CCA Bridge'!W26), "", 'B8 Sch 8 CCA Bridge'!W26) -> 0 | L26: 0 | M26: 0 | N26: 0 | O26: 0 | P26: 0 | Q26: 0 | R26: 0.08 | U26: 0 | W26: 0
B27: =IF(ISBLANK('B8 Sch 8 CCA Bridge'!B27), "", 'B8 Sch 8 CCA Bridge'!B27) -> 42 | C27: =IF(ISBLANK('B8 Sch 8 CCA Bridge'!C27), "", 'B8 Sch 8 CCA Bridge'!C27) -> Fibre Optic Cable | D27: B8 | E27: =IF(ISBLANK('B8 Sch 8 CCA Bridge'!W27), "", 'B8 Sch 8 CCA Bridge'!W27) -> 0 | L27: 0 | M27: 0 | N27: 0 | O27: 0 | P27: 0 | Q27: 0 | R27: 0.12 | U27: 0 | W27: 0
B28: =IF(ISBLANK('B8 Sch 8 CCA Bridge'!B28), "", 'B8 Sch 8 CCA Bridge'!B28) -> 43.1 | C28: =IF(ISBLANK('B8 Sch 8 CCA Bridge'!C28), "", 'B8 Sch 8 CCA Bridge'!C28) -> Certain Clean Energy/Energy-Efficient Generation Equipment | D28: B8 | E28: =IF(ISBLANK('B8 Sch 8 CCA Bridge'!W28), "", 'B8 Sch 8 CCA Bridge'!W28) -> 0 | L28: 0 | M28: 0 | N28: 0 | O28: 0 | P28: 0 | Q28: 0 | R28: 0.3 | U28: 0 | W28: 0
B29: =IF(ISBLANK('B8 Sch 8 CCA Bridge'!B29), "", 'B8 Sch 8 CCA Bridge'!B29) -> 43.2 | C29: =IF(ISBLANK('B8 Sch 8 CCA Bridge'!C29), "", 'B8 Sch 8 CCA Bridge'!C29) -> Certain Clean Energy/Energy-Efficient Generation Equipment | D29: B8 | E29: =IF(ISBLANK('B8 Sch 8 CCA Bridge'!W29), "", 'B8 Sch 8 CCA Bridge'!W29) -> 0 | L29: 0 | M29: 0 | N29: 0 | O29: 0 | P29: 0 | Q29: 0 | R29: 0.5 | U29: 0 | W29: 0
B30: =IF(ISBLANK('B8 Sch 8 CCA Bridge'!B30), "", 'B8 Sch 8 CCA Bridge'!B30) -> 45 | C30: =IF(ISBLANK('B8 Sch 8 CCA Bridge'!C30), "", 'B8 Sch 8 CCA Bridge'!C30) -> Computers & System Software (acq'd post Mar 22/04 and pre Mar 19/07) | D30: B8 | E30: =IF(ISBLANK('B8 Sch 8 CCA Bridge'!W30), "", 'B8 Sch 8 CCA Bridge'!W30) -> 4.4 | L30: 4.4 | M30: 0 | N30: 0 | O30: 0 | P30: 0 | Q30: 0 | R30: 0.45 | U30: 1.98 | W30: 2.42
B31: =IF(ISBLANK('B8 Sch 8 CCA Bridge'!B31), "", 'B8 Sch 8 CCA Bridge'!B31) -> 46 | C31: =IF(ISBLANK('B8 Sch 8 CCA Bridge'!C31), "", 'B8 Sch 8 CCA Bridge'!C31) -> Data Network Infrastructure Equipment (acq'd post Mar 22/04) | D31: B8 | E31: =IF(ISBLANK('B8 Sch 8 CCA Bridge'!W31), "", 'B8 Sch 8 CCA Bridge'!W31) -> 0 | L31: 0 | M31: 0 | N31: 0 | O31: 0 | P31: 0 | Q31: 0 | R31: 0.3 | U31: 0 | W31: 0
B32: =IF(ISBLANK('B8 Sch 8 CCA Bridge'!B32), "", 'B8 Sch 8 CCA Bridge'!B32) -> 47 | C32: =IF(ISBLANK('B8 Sch 8 CCA Bridge'!C32), "", 'B8 Sch 8 CCA Bridge'!C32) -> Distribution System (acq'd post Feb 22/05) | D32: B8 | E32: =IF(ISBLANK('B8 Sch 8 CCA Bridge'!W32), "", 'B8 Sch 8 CCA Bridge'!W32) -> 36721367.74 | F32: 8098009 | G32: 8098009 | L32: 44819376.74 | M32: 0 | N32: 8098009 | O32: 0 | P32: 0 | Q32: 0 | R32: 0.08 | U32: 3585550.139 | W32: 41233826.6
B33: =IF(ISBLANK('B8 Sch 8 CCA Bridge'!B33), "", 'B8 Sch 8 CCA Bridge'!B33) -> 50 | C33: =IF(ISBLANK('B8 Sch 8 CCA Bridge'!C33), "", 'B8 Sch 8 CCA Bridge'!C33) -> General Purpose Computer Hardware & Software (acq'd post Mar 18/07) | D33: B8 | E33: =IF(ISBLANK('B8 Sch 8 CCA Bridge'!W33), "", 'B8 Sch 8 CCA Bridge'!W33) -> 88267.5 | F33: 359303 | G33: 359303 | L33: 447570.5 | M33: 0 | N33: 359303 | O33: 0 | P33: 0 | Q33: 0 | R33: 0.55 | U33: 246163.775 | W33: 201406.725
B34: =IF(ISBLANK('B8 Sch 8 CCA Bridge'!B34), "", 'B8 Sch 8 CCA Bridge'!B34) -> 95 | C34: =IF(ISBLANK('B8 Sch 8 CCA Bridge'!C34), "", 'B8 Sch 8 CCA Bridge'!C34) -> CWIP | D34: B8 | E34: =IF(ISBLANK('B8 Sch 8 CCA Bridge'!W34), "", 'B8 Sch 8 CCA Bridge'!W34) -> 0 | F34: 0 | L34: 0 | M34: 0 | N34: 0 | O34: 0 | P34: 0 | Q34: 0 | R34: 0 | U34: 0 | W34: 0
B35: =IF(ISBLANK('B8 Sch 8 CCA Bridge'!B35), "", 'B8 Sch 8 CCA Bridge'!B35) ->  | C35: =IF(ISBLANK('B8 Sch 8 CCA Bridge'!C35), "", 'B8 Sch 8 CCA Bridge'!C35) ->  | D35: B8 | E35: =IF(ISBLANK('B8 Sch 8 CCA Bridge'!W35), "", 'B8 Sch 8 CCA Bridge'!W35) -> 0 | L35: 0 | M35: 0 | N35: 0 | P35: 0 | Q35: 0 | W35: 0
B36: =IF(ISBLANK('B8 Sch 8 CCA Bridge'!B36), "", 'B8 Sch 8 CCA Bridge'!B36) ->  | C36: =IF(ISBLANK('B8 Sch 8 CCA Bridge'!C36), "", 'B8 Sch 8 CCA Bridge'!C36) ->  | D36: B8 | E36: =IF(ISBLANK('B8 Sch 8 CCA Bridge'!W36), "", 'B8 Sch 8 CCA Bridge'!W36) -> 0 | L36: 0 | M36: 0 | N36: 0 | P36: 0 | Q36: 0 | W36: 0
B37: =IF(ISBLANK('B8 Sch 8 CCA Bridge'!B37), "", 'B8 Sch 8 CCA Bridge'!B37) ->  | C37: =IF(ISBLANK('B8 Sch 8 CCA Bridge'!C37), "", 'B8 Sch 8 CCA Bridge'!C37) ->  | D37: B8 | E37: =IF(ISBLANK('B8 Sch 8 CCA Bridge'!W37), "", 'B8 Sch 8 CCA Bridge'!W37) -> 0 | L37: 0 | M37: 0 | N37: 0 | P37: 0 | Q37: 0 | W37: 0
B38: =IF(ISBLANK('B8 Sch 8 CCA Bridge'!B38), "", 'B8 Sch 8 CCA Bridge'!B38) ->  | C38: =IF(ISBLANK('B8 Sch 8 CCA Bridge'!C38), "", 'B8 Sch 8 CCA Bridge'!C38) ->  | D38: B8 | E38: =IF(ISBLANK('B8 Sch 8 CCA Bridge'!W38), "", 'B8 Sch 8 CCA Bridge'!W38) -> 0 | L38: 0 | M38: 0 | N38: 0 | P38: 0 | Q38: 0 | W38: 0
B39: =IF(ISBLANK('B8 Sch 8 CCA Bridge'!B39), "", 'B8 Sch 8 CCA Bridge'!B39) ->  | C39: =IF(ISBLANK('B8 Sch 8 CCA Bridge'!C39), "", 'B8 Sch 8 CCA Bridge'!C39) ->  | D39: B8 | E39: =IF(ISBLANK('B8 Sch 8 CCA Bridge'!W39), "", 'B8 Sch 8 CCA Bridge'!W39) -> 0 | L39: 0 | M39: 0 | N39: 0 | P39: 0 | Q39: 0 | W39: 0
B40: =IF(ISBLANK('B8 Sch 8 CCA Bridge'!B40), "", 'B8 Sch 8 CCA Bridge'!B40) ->  | C40: =IF(ISBLANK('B8 Sch 8 CCA Bridge'!C40), "", 'B8 Sch 8 CCA Bridge'!C40) ->  | D40: B8 | E40: =IF(ISBLANK('B8 Sch 8 CCA Bridge'!W40), "", 'B8 Sch 8 CCA Bridge'!W40) -> 0 | L40: 0 | M40: 0 | N40: 0 | P40: 0 | Q40: 0 | W40: 0
B41: =IF(ISBLANK('B8 Sch 8 CCA Bridge'!B41), "", 'B8 Sch 8 CCA Bridge'!B41) ->  | C41: =IF(ISBLANK('B8 Sch 8 CCA Bridge'!C41), "", 'B8 Sch 8 CCA Bridge'!C41) ->  | D41: B8 | E41: =IF(ISBLANK('B8 Sch 8 CCA Bridge'!W41), "", 'B8 Sch 8 CCA Bridge'!W41) -> 0 | L41: 0 | M41: 0 | N41: 0 | P41: 0 | Q41: 0 | W41: 0
B42: =IF(ISBLANK('B8 Sch 8 CCA Bridge'!B42), "", 'B8 Sch 8 CCA Bridge'!B42) ->  | C42: =IF(ISBLANK('B8 Sch 8 CCA Bridge'!C42), "", 'B8 Sch 8 CCA Bridge'!C42) ->  | D42: B8 | E42: =IF(ISBLANK('B8 Sch 8 CCA Bridge'!W42), "", 'B8 Sch 8 CCA Bridge'!W42) -> 0 | L42: =IFERROR(E42+F42+H42-K42,"") -> 0 | M42: 0 | N42: 0 | P42: 0 | Q42: 0 | W42: 0
C43: TOTALS | E43: =SUM(E10:E42) -> 55838157.55 | F43: =SUM(F10:F42) -> 9120000 | G43: =SUM(G10:G42) -> 9120000 | H43: =SUM(H10:H42) -> 0 | I43: =SUM(I10:I42) -> 0 | J43: 0 | K43: =SUM(K10:K42) -> 0 | L43: =SUM(L10:L42) -> 64958157.55 | M43: 0 | N43: 9120000 | P43: =SUM(P10:P42) -> 0 | Q43: 0 | S43: =SUM(S10:S42) -> 0 | T43: =SUM(T10:T42) -> 0 | U43: =SUM(U10:U42) -> 4994314.327 | V43: T1 | W43: =SUM(W10:W42) -> 59963843.22
B45: For additional details and guidance on calculating amounts in Schedule 8, refer to the notes to the Canada Revenue Agency published Schedule 8 - Capital Cost Allowance (CCA) (2018 and later tax years):
B46: https://www.canada.ca/content/dam/cra-arc/formspubs/pbg/t2sch8/t2sch8-19e.pdf

Sheet T13 Sch 13 Reserves Test
C7: Schedule 13 Tax Reserves - Test Year
C9: Continuity of Reserves
I10: Test Year Adjustments
C11: Description | D11: Working Paper Reference | E11: Bridge Year | F11: Eliminate Amounts Not Relevant for Test Year | G11: Adjusted Utility Balance | I11: Additions | J11: Disposals | K11: Balance for Test Year | M11: Change During the Year | N11: Disallowed Expenses
C13: Capital Gains Reserves ss.40(1) | D13: B13 | E13: ='B13 Sch 13 Reserves Bridge'!K13 -> 0 | G13: =SUM(E13:F13) -> 0 | K13: =G13+I13-J13 -> 0 | M13: =+K13-G13 -> 0
C14: Tax Reserves Not Deducted for accounting purposes
C15: Reserve for doubtful accounts ss. 20(1)(l) | D15: B13 | E15: ='B13 Sch 13 Reserves Bridge'!K15 -> 0 | G15: =SUM(E15:F15) -> 0 | K15: =G15+I15-J15 -> 0 | M15: =+K15-G15 -> 0
C16: Reserve for goods and services not delivered ss. 20(1)(m) | D16: B13 | E16: ='B13 Sch 13 Reserves Bridge'!K16 -> 0 | G16: 0 | K16: 0 | M16: 0
C17: Reserve for unpaid amounts ss. 20(1)(n) | D17: B13 | E17: ='B13 Sch 13 Reserves Bridge'!K17 -> 0 | G17: 0 | K17: 0 | M17: 0
C18: Debt & Share Issue Expenses ss. 20(1)(e) | D18: B13 | E18: ='B13 Sch 13 Reserves Bridge'!K18 -> 0 | G18: 0 | K18: 0 | M18: 0
C19: Other tax reserves | D19: B13 | E19: ='B13 Sch 13 Reserves Bridge'!K19 -> 0 | G19: 0 | K19: 0 | M19: 0
E20: ='B13 Sch 13 Reserves Bridge'!K20 -> 0 | G20: 0 | K20: 0 | M20: 0
E21: ='B13 Sch 13 Reserves Bridge'!K21 -> 0 | G21: 0 | K21: 0 | M21: 0
C22: Total | E22: =SUM(E15:E21) -> 0 | F22: 0 | G22: 0 | H22: T1 | I22: 0 | J22: 0 | K22: 0 | L22: T1 | M22: 0 | N22: =SUM(N15:N21) -> 0
E23: 0
C24: Financial Statement Reserves (not deductible for Tax Purposes)
C25: General Reserve for Inventory Obsolescence (non-specific) | D25: B13 | E25: ='B13 Sch 13 Reserves Bridge'!K25 -> 0 | G25: =SUM(E25:F25) -> 0 | K25: =G25+I25-J25 -> 0 | M25: =+K25-G25 -> 0
C26: General reserve for bad debts | D26: B13 | E26: ='B13 Sch 13 Reserves Bridge'!K26 -> 0 | G26: 0 | K26: 0 | M26: 0
C27: Accrued Employee Future Benefits: | D27: B13 | E27: ='B13 Sch 13 Reserves Bridge'!K27 -> 0 | G27: 0 | K27: 0 | M27: 0
C28: - Medical and Life Insurance | D28: B13 | E28: ='B13 Sch 13 Reserves Bridge'!K28 -> 0 | G28: 0 | K28: 0 | M28: 0
C29: -Short & Long-term Disability | D29: B13 | E29: ='B13 Sch 13 Reserves Bridge'!K29 -> 0 | G29: 0 | K29: 0 | M29: 0
C30: -Accmulated Sick Leave | D30: B13 | E30: ='B13 Sch 13 Reserves Bridge'!K30 -> 0 | G30: 0 | K30: 0 | M30: 0
C31: - Termination Cost | D31: B13 | E31: ='B13 Sch 13 Reserves Bridge'!K31 -> 0 | G31: 0 | K31: 0 | M31: 0
C32: - Other Post-Employment Benefits | D32: B13 | E32: ='B13 Sch 13 Reserves Bridge'!K32 -> 186918 | G32: 186918 | K32: 186918 | M32: 0
C33: Provision for Environmental Costs | D33: B13 | E33: ='B13 Sch 13 Reserves Bridge'!K33 -> 0 | G33: 0 | K33: 0 | M33: 0
C34: Restructuring Costs | D34: B13 | E34: ='B13 Sch 13 Reserves Bridge'!K34 -> 0 | G34: 0 | K34: 0 | M34: 0
C35: Accrued Contingent Litigation Costs | D35: B13 | E35: ='B13 Sch 13 Reserves Bridge'!K35 -> 0 | G35: 0 | K35: 0 | M35: 0
C36: Accrued Self-Insurance Costs | D36: B13 | E36: ='B13 Sch 13 Reserves Bridge'!K36 -> 0 | G36: 0 | K36: 0 | M36: 0
C37: Other Contingent Liabilities | D37: B13 | E37: ='B13 Sch 13 Reserves Bridge'!K37 -> 0 | G37: 0 | K37: 0 | M37: 0
C38: Bonuses Accrued and Not Paid Within 180 Days of Year-End ss. 78(4) | D38: B13 | E38: ='B13 Sch 13 Reserves Bridge'!K38 -> 0 | G38: 0 | K38: 0 | M38: 0
C39: Unpaid Amounts to Related Person and Not Paid Within 3 Taxation Years ss. 78(1) | D39: B13 | E39: ='B13 Sch 13 Reserves Bridge'!K39 -> 0 | G39: 0 | K39: 0 | M39: 0
C40: Other | D40: B13 | E40: ='B13 Sch 13 Reserves Bridge'!K40 -> 0 | G40: 0 | K40: 0 | M40: 0
E41: ='B13 Sch 13 Reserves Bridge'!K41 -> 0 | G41: 0 | K41: 0 | M41: 0
E42: ='B13 Sch 13 Reserves Bridge'!K42 -> 0 | G42: 0 | K42: 0 | M42: 0
C43: Total | E43: =SUM(E25:E42) -> 186918 | F43: 0 | G43: 186918 | H43: T1 | I43: 0 | J43: 0 | K43: 186918 | L43: T1 | M43: 0 | N43: 0
E44: 0
